Workbook

Sheet 記入方法
B14: ■本シートの使用方法
B15: ●左のシートから右のシートへ、順に記入していきます。
B16: ●最初からすべてを埋めようとせず、わかるところから記入しましょう。
B17: ①まず年金受給予定額を確認してみましょう。
B18: ・年金定期便か年金ネットを利用して確認することができます。
B19: ②老後の生活を想像して毎月の支出額を書き出しましょう。
B20: ・ゆとりある老後生活を送るための支出額をデフォルト記入しています。
B21: ・自身で具体的に考えて記入することも可能です。
B22: ③保険・不動産・預金や投資運用など財産の状況を確認します。
B23: ・キャッシュフロー表を作成するため、まずは金額だけでOK。
B24: ④現在の収入と支出と、年金受給までの変化を記入していきます。
B25: ・現在の収入は、源泉徴収票があれば便利です。
B26: ⑤現在収支の余剰金から、老後資金となる積立金をシミュレーション。
B27: ⑥キャッシュフロー表に必要箇所をコピペして完成。
B28: ⑦キャッシュフロー表の結果や、状況の変化に応じて見直しをかけましょう。
B29: ⑧記入できるすべての項目を埋めると、エンディングノートになります。
B31: ■本シートの記入方法
B32: ●記入する欄は、下記カラーに分かれています。
C33: ・・・必須記入欄 キャッシュフロー表のベースとなる項目です。
C34: ・・・優先記入欄 老後資金を知り、準備するためのキャッシュフロー表に必要です。
C35: ・・・任意記入欄 空欄が少ないほど完成度が高まります。調べて埋めていきましょう。
B36: ●下記欄は計算結果が表示されるので記入不要。
B37: （記入すると計算式が削除されます）
C38: ・・・こちらの計算結果は、キャッシュフロー表に値でコピペしてください。
C39: ・・・計算結果の表示のみ。

Sheet パーソナル情報
A1: 住まいの終活『すましゅう』 | G1: 記入日 | H1: 2024//
B2: 連絡先 | G2: 使用期限
B3: 名前
B4: 旧姓
B5: 生年月日 | C5: 1960// | E5: 年齢 | F5: =IF(C5="","",DATEDIF(C5,$H$1,"Y")) ->  | G5: 歳
B6: 住所
B7: 電話
B8: 血液型 | D8: 型
B9: 勤務先
B10: 勤務先電話番号
B11: 本籍地
C12: 名前 | E12: 続柄 | F12: 生年月日 | H12: 年齢
B13: 相続人１ | F13: 197０// | H13: =IF(F13="","",DATEDIF(F13,$H$1,"Y")) -> 
B14: 相続人２ | H14: =IF(F14="","",DATEDIF(F14,$H$1,"Y")) -> 
B15: 相続人３
B16: 相続人４
B17: 相続人５
B19: 光熱費などの契約 | D19: 連絡先 | H19: 支払方法
B20: 電気代
B21: ガス代
B22: 水道料金
B23: 新聞
B24: 定期購読
B25: ＮＨＫ
B26: ケーブルテレビ
B28: クラブ・習い事などの会員 | D28: 1 | G28: 2
B29: 種類
B30: 連絡先
D31: 3 | G31: 4
B32: 種類
B33: 連絡先

Sheet 年金
A1: 住まいの終活『すましゅう』 | G1: 記入日 | H1: =パーソナル情報!H1 -> 2024//
B2: 記入日時点での年金情報と、受取見込額を確認してください。
B3: 公的年金 | K3: ●年金見込額の確認方法 | N3: 出典： | O3: 「ねんきんネット」による年金見込額試算｜日本年金機構
C4: 被保険者 | F4: 本人 | O4: ※利用にはマイナポータル連携と、ユーザーID取得が必要
C5: 年金の種類
C6: 公的年金 基礎年金番号
C7: 年金手帳の保管場所
C8: 受給開始（予定）年齢 | G8: 歳 | H8: =YEAR(パーソナル情報!$H$1)+(F8-パーソナル情報!$F$5) ->  | I8: 年
C9: 年金受取（予定）額 | G9: 万円／月 | H9: =F9*12 -> 0 | I9: 万円／年 | J9: ※繰り上げ・繰り下げ受給額は反映しない見込み額
C10: 振込口座
C12: 被保険者 | F12: 配偶者
C13: 年金の種類
C14: 公的年金 基礎年金番号
C15: 年金手帳の保管場所
C16: 受給開始（予定）年齢 | G16: 歳 | H16: =YEAR(パーソナル情報!$H$1)+(F16-パーソナル情報!$H$13) ->  | I16: 年
C17: 年金受取（予定）額 | G17: 万円／月 | H17: =F17*12 -> 0 | I17: 万円／年 | J17: ※繰り上げ・繰り下げ受給額は反映しない見込み額
C18: 振込口座
C20: 世帯年金受取（予定）額 合計 | F20: =F17+F9 -> 0 | G20: 万円／月 | H20: =F20*12 -> 0 | I20: 円／年
B22: 企業年金
C23: 被保険者 | F23: 本人
C24: 公的年金 基礎年金番号
C25: 年金証書の保管場所
C26: 受給開始（予定）年齢 | G26: 歳 | H26: =YEAR(パーソナル情報!$H$1)+(F26-パーソナル情報!$F$5) ->  | I26: 年
C27: 年金受取（予定）額 | H27: 万円
C28: 振込口座
C30: 被保険者 | F30: 配偶者
C31: 公的年金 基礎年金番号
C32: 年金証書の保管場所
C33: 受給開始（予定）年齢 | G33: 歳 | H33: =YEAR(パーソナル情報!$H$1)+(F33-パーソナル情報!$H$13) ->  | I33: 年
C34: 年金受取（予定）額 | H34: 万円
C35: 振込口座
C37: 企業年金受取（予定）額 合計 | F37: =F34+F27 -> 0 | H37: 万円
B39: 個人年金 | F39: 年金受取額 | H39: 年金受取年
C40: 被保険者 | D40: 本人 | G40: 万円 | H40: =YEAR(パーソナル情報!$H$1)+(D43-パーソナル情報!$F$5) ->  | I40: 年
C41: 金融機関
C42: 口座番号
C43: 受給開始年齢 | E43: 歳
F44: 年金受取額 | H44: 年金受取年
C45: 被保険者 | D45: 本人 | G45: 万円 | H45: =YEAR(パーソナル情報!$H$1)+(D48-パーソナル情報!$F$5) ->  | I45: 年
C46: 金融機関
C47: 口座番号
C48: 受給開始年齢 | E48: 歳
F49: 年金受取額 | H49: 年金受取年
C50: 被保険者 | D50: 本人 | G50: 万円 | H50: =YEAR(パーソナル情報!$H$1)+(D53-パーソナル情報!$F$5) ->  | I50: 年
C51: 金融機関
C52: 口座番号
C53: 受給開始年齢 | E53: 歳
F54: 年金受取額 | H54: 年金受取年
C55: 被保険者 | D55: 配偶者 | G55: 万円 | H55: =YEAR(パーソナル情報!$H$1)+(D58-パーソナル情報!$H$13) ->  | I55: 年
C56: 金融機関
C57: 口座番号
C58: 受給開始年齢 | E58: 歳
F59: 年金受取額 | H59: 年金受取年
C60: 被保険者 | D60: 配偶者 | G60: 万円 | H60: =YEAR(パーソナル情報!$H$1)+(D63-パーソナル情報!$H$13) ->  | I60: 年
C61: 金融機関
C62: 口座番号
C63: 受給開始年齢 | E63: 歳
F64: 年金受取額 | H64: 年金受取年
C65: 被保険者 | D65: 配偶者 | G65: 万円 | H65: =YEAR(パーソナル情報!$H$1)+(D68-パーソナル情報!$H$13) ->  | I65: 年
C66: 金融機関
C67: 口座番号
C68: 受給開始年齢 | E68: 歳
B70: 個人年金受取年別 （予定）額 合計 | G70: 年 | H70: =SUMIF($H$40:$H$65,F70,$F$40:$F$65) -> 0 | I70: 万円
G71: 年 | H71: =SUMIF($H$40:$H$65,F71,$F$40:$F$65) -> 0 | I71: 万円
G72: 年 | H72: 0 | I72: 万円
G73: 年 | H73: 0 | I73: 万円
G74: 年 | H74: 0 | I74: 万円
G75: 年 | H75: 0 | I75: 万円
F76: 合計 | H76: =SUM(H70:H75) -> 0 | I76: 万円

Sheet 【退職後】年間収入と支出
A1: 住まいの終活『すましゅう』 | Z1: ●年金見込額の確認方法 | AC1: 出典： | AD1: 「ねんきんネット」による年金見込額試算｜日本年金機構
B2: 【退職後】収入と支出を調べよう | AD2: ※利用にはマイナポータル連携と、ユーザーID取得が必要
B3: 年金受取時点から健康に過ごせる間の年間収入と支出の予測を書き出そう | Z3: ●公的年金控除 | AC3: 出典： | AD3: No.1600 公的年金等の課税関係｜国税庁
B5: 老後どんな生活を送りたいか？いくつまで生きたいか？いくつまで元気でいたいか？どんな最期を迎えたいか？ | Z5: ●年間の国民健康料の算出 | AC5: 出典： | AD5: 国民健康保険料を簡単に計算！国保シミュレーション | 税金・社会保障教育 | AK5: ※ご使用は自己責任でお願いします
B6: その希望の老後生活を送った際の年間収支を予測して、家計が赤字か黒字か見てみましょう。 | AC6: 出典： | AD6: 家計調査年報（家計収支編）2023年（令和５年）結果の概要
B7: 年金受給開始 | D7: =年金!F8 -> 0 | H7: 歳 | I7: 記入日から | M7: =D7-パーソナル情報!F5 ->  | N7: 年後 | Z7: ●介護保険 第一号保険料 | AC7: 出典： | AD7: 第９期介護保険事業計画期間における介護保険の第１号保険料及びサービス見込み量等について｜厚生労働省
B9: 65歳の年金受給予定額 | F9: 年間 | H9: =年金!H9 -> 0 | I9: 万円 | Z9: ●介護保険 第一号保険料 | AC9: 出典： | AD9: 老後の生活費は平均いくら？資金計画のポイント３つを解説！｜役立つデータ公開中！｜住友生命保険
H10: 受給年齢 | M10: 繰上げ・繰下げ率 | R10: 年間受給額 | V10: 配偶者控除
B11: (本人）受給開始年齢を選択 | H11: =年金!F8 -> 0 | I11: 歳 | M11: =VLOOKUP(H11,'手取り額計算 (2)'!G18:K33,5,FALSE) ->  | R11: =H9*(100%+M11) ->  | S11: 万円 | V11: あり
B12: (配偶者）受給開始年齢を選択 | H12: =年金!F16 -> 0 | I12: 歳 | M12: =VLOOKUP(H12,'手取り額計算 (2)'!G19:K34,5,FALSE) ->  | R12: =年金!H17*(100%+M12) ->  | S12: 万円
B14: ●年間の収入
B15: =YEAR(パーソナル情報!$H$1)+(H11-パーソナル情報!$F$5) ->  | C15: =YEAR(パーソナル情報!$H$1)+(A15-パーソナル情報!$F$5) ->  | D15: 年 | H15: 所得税率
H16: 0.05105
B17: 収入金額 | H17: 所得税 | M17: 社会保険料 | R17: 住民税 | V17: 年間手取り収入 （可処分所得）
B18: 本人 | C18: =R11 ->  | D18: 万円 | F18: － | H18: ='手取り額計算 (2)'!C27 ->  | I18: 万円 | K18: ＋ | M18: ='手取り額計算 (2)'!C15 ->  | N18: 万円 | P18: ＋ | R18: ='手取り額計算 (2)'!C28 ->  | S18: 万円 | U18: ＝ | V18: =+C18-(H18+M18+R18) ->  | W18: 万円
B19: 配偶者 | C19: =R12 ->  | D19: 万円 | H19: ='手取り額計算 (2)'!C63 ->  | I19: 万円 | M19: ='手取り額計算 (2)'!C51 ->  | N19: 万円 | R19: ='手取り額計算 (2)'!C64 ->  | S19: 万円 | V19: =+C19-(H19+M19+R19) ->  | W19: 万円
H20: 0.05105
B21: =YEAR(パーソナル情報!$H$1)+(H12-パーソナル情報!$H$13) ->  | C21: =YEAR(パーソナル情報!$H$1)+(A21-パーソナル情報!$H$13) ->  | D21: 年 | H21: 所得税率
N23: 年間手取り収入合計 | V23: =SUM(V18:V19) ->  | W23: 万円
B25: ●年間の支出
B26: 支出項目 | E26: 内容 | K26: 毎月の支出① | P26: 年に数回の支出② | U26: 年間の支出 ①×12＋②
B27: 基本生活費 | E27: 食費、水道光熱費、 通信費、日用雑貨費、 教養娯楽費など | K27: 36 | N27: 万円 | S27: 万円 | V27: =+K27*12+P27 -> 432 | W27: 万円
B28: 住居関連費 | E28: 住宅ローン、管理費、 積立金、固定資産税など | N28: 万円 | S28: 万円 | V28: =+K28*12+P28 -> 0 | W28: 万円
B29: 車両費 | E29: 駐車場代、ガソリン代、 自動車税など | N29: 万円 | S29: 万円 | V29: 0 | W29: 万円
B30: 教育・医療費 | E30: 学校教育費、塾代、 習い事の費用、 医療、介護費用など | N30: 万円 | S30: 万円 | V30: 0 | W30: 万円
B31: 保険料 | E31: 家族全員の保険料 | N31: 万円 | S31: 万円 | V31: 0 | W31: 万円 | Z31: ※2 厚生労働省 令和2年度「厚生年金保険・国民年金事業年報」、2022年3月「第92回社会保障審議会年金数理部会資料」に基づき住友生命にて作成 ※3 総務省統計局 2021年「家計調査」に基づき住友生命にて作成
B32: 貯蓄・運用資金 | E32: 積立貯蓄、運用資金 | N32: 万円 | S32: 万円 | V32: 0 | W32: 万円
B33: その他の支出 | E33: レジャー費、交際費、 冠婚葬祭費など | N33: 万円 | S33: 万円 | V33: 0 | W33: 万円
P35: 年間支出合計 | U35: =SUM(U27:V34) -> 432 | W35: 万円
K37: 1年間の収支 | U37: =+V23-U35 ->  | W37: 万円 | Z37: ※4 公益財団法人生命保険文化センター 令和元年「生活保障に関する調査」に基づき住友生命にて作成
B38: 人生最終盤、介護も見据えた時期の年間収入と支出の予測を書き出そう
Z39: ●介護に要した期間 | AC39: 出典： | AD39: 介護にはどれくらいの費用・期間がかかる？｜リスクに備えるための生活設計｜ひと目でわかる生活設計情報｜公益財団法人 生命保険文化センター
B40: 介護も必要になった期間の年間収支を予測して、家計が赤字か黒字か見てみましょう。
B41: 介護開始 | D41: 85 | H41: 歳 | I41: 年金受給開始から | N41: =D41-D7 -> 85 | R41: 年後
B42: =D7+N41 -> 85 | D42: 年 | E42: ～ | H42: =B42+N42 -> 90 | J42: 年まで | N42: =V42-D41 -> 5 | R42: 年間 | S42: 寿命 | V42: 90 | W42: 歳
B44: 希望する介護や医療の方法、計算根拠があれば記入しておくと、後で見直す際に便利です
B53: ●年間の支出 | Z53: 出典：生命保険文化センター「生命保険に関する全国実態調査」／2021（令和3）年度
B54: 支出項目 | E54: 内容 | K54: 毎月の支出① | P54: 年に数回の支出② | U54: 年間の支出 ①×12＋②
B55: 基本生活費 | E55: 食費、水道光熱費、 通信費、日用雑貨費、 教養娯楽費など | K55: 11 | N55: 万円 | S55: 万円 | V55: =+K55*12+P55 -> 132 | W55: 万円 | Z55: ●介護かかる費用の平均金額 | AC55: 出典： | AD55: 介護にはどれくらいの費用・期間がかかる？｜リスクに備えるための生活設計｜ひと目でわかる生活設計情報｜公益財団法人 生命保険文化センター
B56: 住居関連費 | E56: 住宅ローン、管理費、 積立金、固定資産税など | N56: 万円 | S56: 万円 | V56: =+K56*12+P56 -> 0 | W56: 万円
B57: 車両費 | E57: 駐車場代、ガソリン代、 自動車税など | N57: 万円 | S57: 万円 | V57: 0 | W57: 万円
B58: 教育・医療費 | E58: 学校教育費、塾代、 習い事の費用、 医療、介護費用など | K58: 13 | N58: 万円 | S58: 万円 | V58: 156 | W58: 万円
B59: 保険料 | E59: 家族全員の保険料 | N59: 万円 | S59: 万円 | V59: 0 | W59: 万円
B60: 貯蓄・運用資金 | E60: 積立貯蓄、運用資金 | N60: 万円 | S60: 万円 | V60: 0 | W60: 万円
B61: その他の支出 | E61: レジャー費、交際費、 冠婚葬祭費など | N61: 万円 | S61: 万円 | V61: 0 | W61: 万円 | Z61: 出典：生命保険文化センター「生命保険に関する全国実態調査」／2021（令和3）年度
P63: 年間支出合計 | U63: =SUM(U55:V62) -> 288 | W63: 万円
K65: 1年間の収支 | U65: =+V23-U63 ->  | W65: 万円

Sheet 手取り額計算 (2) (hidden)
A1: 住まいの終活『すましゅう』
B2: 年収から手取り額を簡易計算（年金向け）2020.4～
B3: =【退職後】年間収入と支出!B15 ->  | C3: 年
B4: 本人 | D4: ←この色のセルに入力ください
G5: 65歳未満 | K5: 65歳以上 | Q5: 本人収入 | R5: vlookup関数のための数値
B6: 本人年齢 | C6: =【退職後】年間収入と支出!H11 -> 0 | D6: 歳 | E6: ① | G6: 年収 | H6: 控除率 | I6: 速算加減値 | K6: 年収 | L6: 控除率 | M6: 速算加減値 | Q6: 0 | R6: 2
B7: 扶養配偶者 | C7: =【退職後】年間収入と支出!V11 -> あり | G7: 0 | H7: 1 | I7: 0 | K7: 0 | L7: 1 | M7: 0 | Q7: 1096 | R7: 3
B8: 年金収入 | C8: =【退職後】年間収入と支出!C18 ->  | D8: 万円 | G8: 61 | H8: 1 | I8: -60 | K8: 111 | L8: 1 | M8: -110 | Q8: 1146 | R8: 4
B9: 配偶者年齢 | C9: =C6+E9 ->  | D9: 歳 | E9: =パーソナル情報!F5-パーソナル情報!H13 ->  | G9: 131 | H9: 0.75 | I9: -27.5 | K9: 331 | L9: 0.75 | M9: -27.5 | Q9: 1196 | R9: 5
B10: 19-23歳の子供(扶養） | D10: 人 | G10: 411 | H10: 0.85 | I10: -68.5 | K10: 411 | L10: 0.85 | M10: -68.5
B11: 70歳以上・非同居(扶養) | D11: 人 | G11: 771 | H11: 0.95 | I11: -145.5 | K11: 771 | L11: 0.95 | M11: -145.5 | Q11: 配偶者控除額
B12: 70歳以上・同居(扶養) | D12: 人 | G12: 1001 | H12: 1 | I12: -195.5 | K12: 1001 | L12: 1 | M12: -195.5 | Q12: 配偶者年齢 | R12: 配偶者控除額
Q13: 0 | R13: 39
B14: 雑所得額 | C14: =IF(C6<65,VLOOKUP(C8,G7:I13,2,TRUE)*C8+VLOOKUP(C8,G7:I13,3,TRUE),VLOOKUP(C8,K7:M13,2,TRUE)*C8+VLOOKUP(C8,K7:M13,3,TRUE)) ->  | D14: 万円 | Q14: 71 | R14: 49
B15: 社会保険料控除 | C15: =C8*$S$21 ->  | D15: 万円 | E15: ②
B16: 基礎控除 | C16: 48 | D16: 万円 | G16: 繰り上げ・繰り下げ受給額 | M16: 所得税速算表
B17: 配偶者控除 | C17: =IF(C7="あり",VLOOKUP(C9,Q13:R14,2,TRUE),0) ->  | D17: 万円 | G17: 課税所得 | H17: 税率 | I17: 年数 | J17: 月数 | K17: 減産・加算率 | M17: 課税所得 | N17: 税率 | O17: 速算加減値 | R17: 出典： | S17: 家計調査年報（家計収支編）2023年（令和５年）結果の概要
B18: 他扶養控除 | D18: 万円 | G18: 60 | H18: -0.004 | I18: 5 | J18: =I18*12 -> 60 | K18: =J18*H18 -> -0.24 | M18: 0 | N18: 0.05 | O18: 0 | R18: ②
B19: 生命保険料控除 | D19: 万円 | G19: 61 | H19: -0.004 | I19: 4 | J19: =I19*12 -> 48 | K19: =J19*H19 -> -0.192 | M19: 196 | N19: 0.1 | O19: -9.75 | R19: 実収入 | S19: 244580
B20: ideco控除 | D20: 万円 | G20: 62 | H20: -0.004 | I20: 3 | J20: 36 | K20: =J20*H20 -> -0.144 | M20: 331 | N20: 0.2 | O20: -42.75 | R20: 社会保険料 | S20: 18435
B21: その他控除 | D21: 万円 | G21: 63 | H21: -0.004 | I21: 2 | J21: 24 | K21: -0.096 | M21: 696 | N21: 0.23 | O21: -63.6 | R21: 社会保険料率 | S21: =S20/S19 -> 0.07537411072
B22: 控除額計 | C22: =SUM(C15:C21) ->  | D22: 万円 | E22: ③ | G22: 64 | H22: -0.004 | I22: 1 | J22: 12 | K22: -0.048 | M22: 901 | N22: 0.33 | O22: -153.6
G23: 65 | M23: 1801 | N23: 0.4 | O23: -279.6
B24: 前年ふるさと納税額 | D24: 万円 | G24: 66 | H24: 0.007 | I24: 1 | J24: 12 | K24: 0.084 | M24: 4001 | N24: 0.45 | O24: -479.6
G25: 67 | H25: 0.007 | I25: 2 | J25: 24 | K25: 0.168
B26: 課税所得 | C26: =IF(C14-C22<0,0,C14-C22) ->  | D26: 万円 | E26: ①－③ | G26: 68 | H26: 0.007 | I26: 3 | J26: 36 | K26: 0.252
B27: 所得税 | C27: =C26*5.105% ->  | D27: 万円 | G27: 69 | H27: 0.007 | I27: 4 | J27: 48 | K27: 0.336
B28: 住民税 | C28: =IF(C26*10%>0,C26*10%,0)+1-C24+0.2 ->  | D28: 万円 | G28: 70 | H28: 0.007 | I28: 5 | J28: 60 | K28: 0.42
B29: 税合計 | C29: =SUM(C27:C28) ->  | D29: 万円 | E29: ④ | G29: 71 | H29: 0.007 | I29: 6 | J29: 72 | K29: 0.504
B30: 税/年収比 | C30: =C29/C6*100 ->  | D30: ％ | G30: 72 | H30: 0.007 | I30: 7 | J30: 84 | K30: 0.588
B31: 手取り額 | C31: =C8-C15-C29 ->  | D31: 万円 | E31: ①－②－④ | G31: 73 | H31: 0.007 | I31: 8 | J31: 96 | K31: 0.672
G32: 74 | H32: 0.007 | I32: 9 | J32: 108 | K32: 0.756
G33: 75 | H33: 0.007 | I33: 10 | J33: 120 | K33: 0.84
B34: ※会社員で概ね年収150万円以上（社会保険加入者）の方向け。
B35: ※生命保険料控除額はCASEによって異なるためデフォルトでは5万円。
B36: ※住民税と所得税控除額が異なる分、住民税額に＋1万円して計算。
B37: ※住宅ローン控除は考慮せず。
B39: =【退職後】年間収入と支出!B21 ->  | C39: 年
B40: 配偶者 | D40: ←この色のセルに入力ください
G41: 65歳未満 | K41: 65歳以上 | Q41: 本人収入 | R41: vlookup関数のための数値
B42: 配偶者年齢 | C42: =【退職後】年間収入と支出!H12 -> 0 | D42: 歳 | E42: ① | G42: 年収 | H42: 控除率 | I42: 速算加減値 | K42: 年収 | L42: 控除率 | M42: 速算加減値 | Q42: 0 | R42: 2
B43: 扶養配偶者 | C43: =【退職後】年間収入と支出!V47 -> 0 | G43: 0 | H43: 1 | I43: 0 | K43: 0 | L43: 1 | M43: 0 | Q43: 1096 | R43: 3
B44: 年金収入 | C44: =【退職後】年間収入と支出!C19 ->  | D44: 万円 | G44: 61 | H44: 1 | I44: -60 | K44: 111 | L44: 1 | M44: -110 | Q44: 1146 | R44: 4
B45: 配偶者年齢 | C45: =C42+E45 -> 0 | D45: 歳 | E45: =パーソナル情報!F41-パーソナル情報!H49 -> 0 | G45: 131 | H45: 0.75 | I45: -27.5 | K45: 331 | L45: 0.75 | M45: -27.5 | Q45: 1196 | R45: 5
B46: 19-23歳の子供(扶養） | D46: 人 | G46: 411 | H46: 0.85 | I46: -68.5 | K46: 411 | L46: 0.85 | M46: -68.5
B47: 70歳以上・非同居(扶養) | D47: 人 | G47: 771 | H47: 0.95 | I47: -145.5 | K47: 771 | L47: 0.95 | M47: -145.5 | Q47: 配偶者控除額
B48: 70歳以上・同居(扶養) | D48: 人 | G48: 1001 | H48: 1 | I48: -195.5 | K48: 1001 | L48: 1 | M48: -195.5 | Q48: 配偶者年齢 | R48: 配偶者控除額
Q49: 0 | R49: 39
B50: 雑所得額 | C50: =IF(C42<65,VLOOKUP(C44,G43:I49,2,TRUE)*C44+VLOOKUP(C44,G43:I49,3,TRUE),VLOOKUP(C44,K43:M49,2,TRUE)*C44+VLOOKUP(C44,K43:M49,3,TRUE)) ->  | D50: 万円 | Q50: 71 | R50: 49
B51: 社会保険料控除 | C51: =C44*$S$21 ->  | D51: 万円 | E51: ②
B52: 基礎控除 | C52: 48 | D52: 万円 | G52: 繰り上げ・繰り下げ受給額 | M52: 所得税速算表
B53: 配偶者控除 | C53: =IF(C43="あり",VLOOKUP(C45,Q49:R50,2,TRUE),0) -> 0 | D53: 万円 | G53: 課税所得 | H53: 税率 | I53: 年数 | J53: 月数 | K53: 減産・加算率 | M53: 課税所得 | N53: 税率 | O53: 速算加減値
B54: 他扶養控除 | D54: 万円 | G54: 60 | H54: -0.004 | I54: 5 | J54: =I54*12 -> 60 | K54: =J54*H54 -> -0.24 | M54: 0 | N54: 0.05 | O54: 0
B55: 生命保険料控除 | D55: 万円 | G55: 61 | H55: -0.004 | I55: 4 | J55: =I55*12 -> 48 | K55: =J55*H55 -> -0.192 | M55: 196 | N55: 0.1 | O55: -9.75
B56: ideco控除 | D56: 万円 | G56: 62 | H56: -0.004 | I56: 3 | J56: 36 | K56: =J56*H56 -> -0.144 | M56: 331 | N56: 0.2 | O56: -42.75
B57: その他控除 | D57: 万円 | G57: 63 | H57: -0.004 | I57: 2 | J57: 24 | K57: -0.096 | M57: 696 | N57: 0.23 | O57: -63.6
B58: 控除額計 | C58: =SUM(C51:C57) ->  | D58: 万円 | E58: ③ | G58: 64 | H58: -0.004 | I58: 1 | J58: 12 | K58: -0.048 | M58: 901 | N58: 0.33 | O58: -153.6
G59: 65 | M59: 1801 | N59: 0.4 | O59: -279.6
B60: 前年ふるさと納税額 | C60: =【就労時】年間収入と支出!R61 -> 0 | D60: 万円 | G60: 66 | H60: 0.007 | I60: 1 | J60: 12 | K60: =J60*H60 -> 0.084 | M60: 4001 | N60: 0.45 | O60: -479.6
G61: 67 | H61: 0.007 | I61: 2 | J61: 24 | K61: 0.168
B62: 課税所得 | C62: =IF(C50-C58<0,0,C50-C58) ->  | D62: 万円 | E62: ①－③ | G62: 68 | H62: 0.007 | I62: 3 | J62: 36 | K62: 0.252
B63: 所得税 | C63: =C62*5.105% ->  | D63: 万円 | G63: 69 | H63: 0.007 | I63: 4 | J63: 48 | K63: 0.336
B64: 住民税 | C64: =IF(C62*10%>0,C62*10%,0)+1-C60+0.2 ->  | D64: 万円 | G64: 70 | H64: 0.007 | I64: 5 | J64: 60 | K64: 0.42
B65: 税合計 | C65: =SUM(C63:C64) ->  | D65: 万円 | E65: ④ | G65: 71 | H65: 0.007 | I65: 6 | J65: 72 | K65: 0.504
B66: 税/年収比 | C66: =C65/C42*100 ->  | D66: ％ | G66: 72 | H66: 0.007 | I66: 7 | J66: 84 | K66: 0.588
B67: 手取り額 | C67: =C44-C51-C65 ->  | D67: 万円 | E67: ①－②－④ | G67: 73 | H67: 0.007 | I67: 8 | J67: 96 | K67: 0.672
G68: 74 | H68: 0.007 | I68: 9 | J68: 108 | K68: 0.756
G69: 75 | H69: 0.007 | I69: 10 | J69: 120 | K69: 0.84
B70: ※会社員で概ね年収150万円以上（社会保険加入者）の方向け。
B71: ※生命保険料控除額はCASEによって異なるためデフォルトでは5万円。
B72: ※住民税と所得税控除額が異なる分、住民税額に＋1万円して計算。
B73: ※住宅ローン控除は考慮せず。

Sheet 保険一覧
A1: 住まいの終活『すましゅう』 | H1: 記入日 | J1: =パーソナル情報!H1 -> 2024//
B3: 保険契約一覧表
B5: 被保険者＝ | D5: 本人
D6: ① | F6: ② | H6: ③ | J6: ④
B7: 契約者
B8: 受取人
B9: 保険種類 | D9: 終身保険 | F9: がん保険 | H9: 収入保障 | J9: 終身医療
B10: 商品名
B11: 保険会社
B12: 保険期間 | D12: 自2010.8.1 至 終身 | F12: 自2016.８.1 至 終身 | H12: 自2016.８.1 至 2041.7.31 | J12: 自2016.８.1 至 終身 | M12: ●西暦・和暦早見表 | O12: 西暦・和暦・年齢などの変換早見表 | 西暦和暦オール
B13: 生命 保険 | C13: 死亡保険金額（一時金） | E13: 万円 | G13: 万円 | I13: 万円 | K13: 万円
C14: 死亡保険金額（年金） | E14: 万円 | G14: 万円 | I14: 万円 | K14: 万円
C15: 年金の終了予定
C16: 入院日額 | E16: 円 | G16: 円 | I16: 円 | K16: 円
C17: 入院を伴う通院日額 | E17: 円 | G17: 円 | I17: 円 | K17: 円
B18: 就業 不能 | C18: 所得補償
B19: がん | C19: がん診断 | E19: 万円 | G19: 万円 | I19: 万円 | K19: 万円
C20: がん入院日額 | E20: 円 | G20: 円 | I20: 円 | K20: 円
C21: がん通院日額 | E21: 円 | G21: 円 | I21: 円 | K21: 円
C22: がん先進医療
B23: 傷害 保険 | C23: 死亡保険金額 | E23: 万円 | G23: 万円 | I23: 万円 | K23: 万円
C24: 入院日額 | E24: 円 | G24: 円 | I24: 円 | K24: 円
C25: 通院日額 | E25: 円 | G25: 円 | I25: 円 | K25: 円
B26: 保険料払い方 | D26: 口振／月払 | F26: 口振／月払 | H26: 口振／月払 | J26: 口振／月払
B27: 保険料払込期間 | D27: 終身 | F27: 終身 | H27: 25年 | J27: 終身
B28: 年間保険料 | E28: 円 | G28: 円 | I28: 円 | K28: 円
B29: 証券番号
B30: 問合窓口
B31: 保管場所
B32: ID
B33: パスワード
B34: 満期・解約払戻金の予定年齢
B35: 満期・解約払戻金の予定金額 | E35: 万円 | G35: 万円 | I35: 万円 | K35: 万円
B36: 備考
H38: 年間支払保険料合計 | J38: =D28+F28+H28+J28 -> 0 | K38: 円
H39: 月額支払保険料合計 | J39: =J38/12 -> 0 | K39: 円
H40: 死亡保険金 | J40: =D13+F13+H13+J13+D23+F23+H23+J23 -> 0 | K40: 万円
H41: 満期・解約返戻金 | J41: =D35+F35+H35+J35 -> 0 | K41: 万円
A45: 住まいの終活『すましゅう』
B47: 保険契約一覧表
B49: 被保険者＝
D50: ① | F50: ② | H50: ③ | J50: ④
B51: 契約者
B52: 受取人
B53: 保険種類
B54: 商品名
B55: 保険会社
B56: 保険期間
B57: 生命 保険 | C57: 死亡保険金額（一時金） | E57: 万円 | G57: 万円 | I57: 万円 | K57: 万円
C58: 死亡保険金額（年金） | E58: 万円 | G58: 万円 | I58: 万円 | K58: 万円
C59: 年金の終了予定
C60: 入院日額 | E60: 円 | G60: 円 | I60: 円 | K60: 円
C61: 入院を伴う通院日額 | E61: 円 | G61: 円 | I61: 円 | K61: 円
B62: 就業 不能 | C62: 所得補償
B63: がん | C63: がん診断 | E63: 万円 | G63: 万円 | I63: 万円 | K63: 万円
C64: がん入院日額 | E64: 円 | G64: 円 | I64: 円 | K64: 円
C65: がん通院日額 | E65: 円 | G65: 円 | I65: 円 | K65: 円
C66: がん先進医療
B67: 傷害 保険 | C67: 死亡保険金額 | E67: 万円 | G67: 万円 | I67: 万円 | K67: 万円
C68: 入院日額 | E68: 円 | G68: 円 | I68: 円 | K68: 円
C69: 通院日額 | E69: 円 | G69: 円 | I69: 円 | K69: 円
B70: 保険料払い方
B71: 保険料払込期間
B72: 年間保険料 | E72: 円 | G72: 円 | I72: 円 | K72: 円
B73: 証券番号
B74: 問合窓口
B75: 保管場所
B76: ID
B77: パスワード
B78: 満期・解約払戻金の予定年齢
B79: 満期・解約払戻金の予定金額 | E79: 万円 | G79: 万円 | I79: 万円 | K79: 万円
B80: 備考
H82: 年間支払保険料合計 | J82: =D72+F72+H72+J72 -> 0 | K82: 円
H83: 月額支払保険料合計 | J83: =J82/12 -> 0 | K83: 円
H84: 死亡保険金 | J84: =D57+F57+H57+J57+D67+F67+H67+J67 -> 0 | K84: 万円
H85: 満期・解約返戻金 | J85: =D79+F79+H79+J79 -> 0 | K85: 万円
A89: 住まいの終活『すましゅう』
B91: 保険契約一覧表
B93: 被保険者＝
D94: ① | F94: ② | H94: ③ | J94: ④
B95: 契約者
B96: 受取人
B97: 保険種類
B98: 商品名
B99: 保険会社
B100: 保険期間
B101: 生命 保険 | C101: 死亡保険金額（一時金） | E101: 万円 | G101: 万円 | I101: 万円 | K101: 万円
C102: 死亡保険金額（年金） | E102: 万円 | G102: 万円 | I102: 万円 | K102: 万円
C103: 年金の終了予定
C104: 入院日額 | E104: 円 | G104: 円 | I104: 円 | K104: 円
C105: 入院を伴う通院日額 | E105: 円 | G105: 円 | I105: 円 | K105: 円
B106: 就業 不能 | C106: 所得補償
B107: がん | C107: がん診断 | E107: 万円 | G107: 万円 | I107: 万円 | K107: 万円
C108: がん入院日額 | E108: 円 | G108: 円 | I108: 円 | K108: 円
C109: がん通院日額 | E109: 円 | G109: 円 | I109: 円 | K109: 円
C110: がん先進医療
B111: 傷害 保険 | C111: 死亡保険金額 | E111: 万円 | G111: 万円 | I111: 万円 | K111: 万円
C112: 入院日額 | E112: 円 | G112: 円 | I112: 円 | K112: 円
C113: 通院日額 | E113: 円 | G113: 円 | I113: 円 | K113: 円
B114: 保険料払い方
B115: 保険料払込期間
B116: 年間保険料 | E116: 円 | G116: 円 | I116: 円 | K116: 円
B117: 証券番号
B118: 問合窓口
B119: 保管場所
B120: ID
B121: パスワード
B122: 満期・解約払戻金の予定年齢
B123: 満期・解約払戻金の予定金額 | E123: 万円 | G123: 万円 | I123: 万円 | K123: 万円
B124: 備考
H126: 年間支払保険料合計 | J126: =D116+F116+H116+J116 -> 0 | K126: 円
H127: 月額支払保険料合計 | J127: =J126/12 -> 0 | K127: 円
H128: 死亡保険金 | J128: =D101+F101+H101+J101+D111+F111+H111+J111 -> 0 | K128: 万円
H129: 満期・解約返戻金 | J129: =D123+F123+H123+J123 -> 0 | K129: 万円
A136: 住まいの終活『すましゅう』
B138: 保険契約一覧表
B140: 被保険者＝
D141: ① | F141: ② | H141: ③ | J141: ④
B142: 契約者
B143: 受取人
B144: 保険種類
B145: 商品名
B146: 保険会社
B147: 保険期間
B148: 生命 保険 | C148: 死亡保険金額（一時金） | E148: 万円 | G148: 万円 | I148: 万円 | K148: 万円
C149: 死亡保険金額（年金） | E149: 万円 | G149: 万円 | I149: 万円 | K149: 万円
C150: 年金の終了予定
C151: 入院日額 | E151: 円 | G151: 円 | I151: 円 | K151: 円
C152: 入院を伴う通院日額 | E152: 円 | G152: 円 | I152: 円 | K152: 円
B153: 就業 不能 | C153: 所得補償
B154: がん | C154: がん診断 | E154: 万円 | G154: 万円 | I154: 万円 | K154: 万円
C155: がん入院日額 | E155: 円 | G155: 円 | I155: 円 | K155: 円
C156: がん通院日額 | E156: 円 | G156: 円 | I156: 円 | K156: 円
C157: がん先進医療
B158: 傷害 保険 | C158: 死亡保険金額 | E158: 万円 | G158: 万円 | I158: 万円 | K158: 万円
C159: 入院日額 | E159: 円 | G159: 円 | I159: 円 | K159: 円
C160: 通院日額 | E160: 円 | G160: 円 | I160: 円 | K160: 円
B161: 保険料払い方
B162: 保険料払込期間
B163: 年間保険料 | E163: 円 | G163: 円 | I163: 円 | K163: 円
B164: 証券番号
B165: 問合窓口
B166: 保管場所
B167: ID
B168: パスワード
B169: 満期・解約払戻金の予定年齢
B170: 満期・解約払戻金の予定金額 | E170: 万円 | G170: 万円 | I170: 万円 | K170: 万円
B171: 備考
H173: 年間支払保険料合計 | J173: =D163+F163+H163+J163 -> 0 | K173: 円
H174: 月額支払保険料合計 | J174: =J173/12 -> 0 | K174: 円
H175: 死亡保険金 | J175: =D148+F148+H148+J148+D158+F158+H158+J158 -> 0 | K175: 万円
H176: 満期・解約返戻金 | J176: =D170+F170+H170+J170 -> 0 | K176: 万円
H178: 保険情報まとめ
H179: 年間支払保険料合計 | J179: =J173+J126+J82+J38 -> 0 | K179: 円
H180: 月額支払保険料合計 | J180: =J174+J127+J83+J39 -> 0 | K180: 円
H181: 死亡保険金 | J181: 0 | K181: 万円
H182: 満期・解約返戻金 | J182: 0 | K182: 万円

Sheet 不動産
A1: 住まいの終活『すましゅう』 | G1: 記入日 | H1: =パーソナル情報!H1 -> 2024//
B3: 不動産－所有している土地 | E3: ※記入日現在の評価額を記入。 | K3: ●不動産取引価格の確認方法
E4: 1 | K4: レインズ・マーケット・インフォメーション
C5: 所在地 | K5: REINS Market Informationは全国指定流通機構連絡協議会が運営するサイトで、土地や建物の取引価格が一覧で公開されています。登録なしで、全国の不動産取引データを簡単に検索できます。
A6: （共有のみ） | C6: 共有者氏名・連絡先
C7: 自分の持ち分 | K7: 特徴：主に土地や住宅の売買価格を検索することができ、エリアごとの相場を確認できます。
A8: （貸している） | C8: 借主氏名・連絡先 | K8: サイトURL：REINS Market Information
C9: 契約期間
C10: 契約書の保管場所 | K10: メリット：
C11: 課題
K12: 実際の成約価格が確認できる
K13: 登録不要で利用できる
K14: 見やすいインターフェース
C15: 希望する処理
K16: ■絞り込み検索が分かり易く、素人にも見やすいサイトです。
K17: ※ご使用は自己責任でお願いします
C21: 不動産評価額 | G21: 万円
E22: 2
C23: 所在地
A24: （共有のみ） | C24: 共有者氏名・連絡先
C25: 自分の持ち分
A26: （貸している） | C26: 借主氏名・連絡先
C27: 契約期間
C28: 契約書の保管場所
C29: 課題
C33: 希望する処理
C39: 不動産評価額 | G39: 万円
B40: 不動産－借りている土地
E41: 1
C42: 所在地
C43: 貸主の氏名・連絡先
C44: 契約期間
C45: 貸主の住所
C46: 契約書の保管場所
C47: 備考
E49: 2
C50: 所在地
C51: 貸主の氏名・連絡先
C52: 契約期間
C53: 貸主の住所
C54: 契約書の保管場所
C55: 備考
B58: 不動産－所有している建物
E59: 1
C60: 所在地
A61: （共有のみ） | C61: 共有者氏名・連絡先
C62: 自分の持ち分
A63: （貸している） | C63: 借主氏名・連絡先
C64: 契約期間
C65: 契約書の保管場所
C66: 建物建設業者
C67: 修繕業者① | E67: （修繕箇所）
C68: 修繕業者② | E68: （修繕箇所）
C69: 修繕業者③ | E69: （修繕箇所）
C70: 希望する処理
E78: 2
C79: 所在地
A80: （共有のみ） | C80: 共有者氏名・連絡先
C81: 自分の持ち分
A82: （貸している） | C82: 借主氏名・連絡先
C83: 契約期間
C84: 契約書の保管場所
C85: 建物建設業者
C86: 修繕業者① | E86: （修繕箇所）
C87: 修繕業者② | E87: （修繕箇所）
C88: 修繕業者③ | E88: （修繕箇所）
C89: 希望する処理
B97: 不動産－借りている建物
E98: 1
C99: 所在地
C100: 貸主の氏名・連絡先
C101: 契約期間
C102: 貸主の住所
C103: 契約書の保管場所
C104: 備考
E106: 2
C107: 所在地
C108: 貸主の氏名・連絡先
C109: 契約期間
C110: 貸主の住所
C111: 契約書の保管場所
C112: 備考
B117: 住宅ローンについて | H117: =TODAY() -> 2026-05-30
D119: 借入先 | E119: 三井住友信託銀行
D120: 借入額 | G120: 万円
D121: 返済開始年月
D122: ボーナス予定返済額（1回分） | G122: 万円 | H122: ※なしは空欄
D123: ボーナス予定返済回数 | G123: 回 | H123: ※なしは空欄
D124: 借入期間 | G124: 年
D125: 金利（年利） | G125: ％
D126: 毎月のローン返済額 | E126: =住宅ローン返済表!F16 ->  | G126: 円 | H126: ※簡易的な計算による
D127: 記入日のローン残高 | E127: =VLOOKUP(H117,住宅ローン返済表!C16:M615,10,TRUE)/10000 ->  | G127: 万円 | H127: ※簡易的な計算による
D128: 所在地

Sheet 資産
A1: 住まいの終活『すましゅう』 | G1: 記入日 | H1: =パーソナル情報!H1 -> 2024//
B2: 財産額 | C2: ※記入日現在の財産額。各項目の合計。
C3: 現金・預貯金 | F3: =F22+H22+F30+H30+F38+H38+F64 -> 0 | H3: 万円
C4: 有価証券（株など） | F4: =F45+H45+F52+H52+F59+H59 -> 0 | H4: 万円
C5: 死亡保険金 | F5: =保険一覧!J181 -> 0 | H5: 万円
C6: 満期・解約返戻金 | F6: =保険一覧!J182 -> 0 | H6: 万円
C7: 不動産（土地・建物など） | F7: =不動産!E21+不動産!E39 -> 0 | H7: 万円
E8: 資産合計 | F8: =SUM(F3:F7) -> 0 | H8: 万円
C10: 借金（債務） | F10: =E70 -> 0 | H10: 万円
C11: 住宅ローン | F11: =不動産!E127 ->  | H11: 万円
E12: 負債合計 | F12: =SUM(F10:F11) ->  | H12: 万円
E13: 資産－負債 | F13: =F8-F12 ->  | H13: 万円
B15: 預貯金 | C15: ※記入日現在の残高を記入。 | F15: 1 | H15: 2
C16: 金融機関名
C17: 支店名
C18: 預金種別・口座番号
C19: 口座名義
C20: 通帳・カード保管場所
C21: 暗証番号
C22: 預金額 | G22: 万円 | I22: 万円
F23: 3 | H23: 4
C24: 金融機関名
C25: 支店名
C26: 預金種別・口座番号
C27: 口座名義
C28: 通帳・カード保管場所
C29: 暗証番号
C30: 預金額 | G30: 万円 | I30: 万円
F31: 5 | H31: 6
C32: 金融機関名
C33: 支店名
C34: 預金種別・口座番号
C35: 口座名義
C36: 通帳・カード保管場所
C37: 暗証番号
C38: 預金額 | G38: 万円 | I38: 万円
B39: 株式・投資信託など | D39: ※記入日現在の残高。 | F39: 1 | H39: 2
C40: 金融機関名
C41: 支店名
C42: 資産種別（株式、投資信託）
C43: 証券・契約書番号
C44: 書類の保管場所
C45: 運用額 | G45: 万円 | I45: 万円
F46: 3 | H46: 4
C47: 金融機関名
C48: 支店名
C49: 資産種別（株式、投資信託）
C50: 証券・契約書番号
C51: 書類の保管場所
C52: 運用額 | G52: 万円 | I52: 万円
F53: 5 | H53: 6
C54: 金融機関名
C55: 支店名
C56: 資産種別（株式、投資信託）
C57: 証券・契約書番号
C58: 書類の保管場所
C59: 運用額 | G59: 万円 | I59: 万円
B61: 金庫の有無 | D61: ※記入日現在の残高を記入。
E63: 保管場所
E64: 現金 | G64: 万円
B66: 借金 | C66: ※住宅ローン以外
C67: 借入先
C68: 連絡先
C69: 借入年月日
C70: 借入額 | G70: 万円
C71: 書類の保管場所
C72: 連帯保証人
C73: 連絡先
C74: 保証人年月日
C75: 保証額 | G75: 万円
C76: 書類の保管場所
B78: クレジットカード | E78: 1 | G78: 2
C79: カード会社
C80: カード番号
C81: 暗証番号
C82: 保管場所
E83: 3 | G83: 4
C84: カード会社
C85: カード番号
C86: 暗証番号
C87: 保管場所
E88: 5 | G88: 6
C89: カード会社
C90: カード番号
C91: 暗証番号
C92: 保管場所
B94: 自動車 | G94: 1
C95: 車種
C96: ナンバー
C97: 車検証・自賠責保険証明書の保管場所
C98: 駐車場場所（連絡先）
G99: 2
C100: 車種
C101: ナンバー
C102: 車検証・自賠責保険証明書の保管場所
C103: 駐車場場所（連絡先）
G104: 3
C105: 車種
C106: ナンバー
C107: 車検証・自賠責保険証明書の保管場所
C108: 駐車場場所（連絡先）
B116: 遺品・資産・形見分け
B117: （会員権、骨董品、美術品、貴金属など）
E118: 1
C119: 種類・内容
C120: 保管場所
C121: 譲りたい相手
E122: 2
C123: 種類・内容
C124: 保管場所
C125: 譲りたい相手
E126: 3
C127: 種類・内容
C128: 保管場所
C129: 譲りたい相手
E130: 4
C131: 種類・内容
C132: 保管場所
C133: 譲りたい相手
E134: 5
C135: 種類・内容
C136: 保管場所
C137: 譲りたい相手

Sheet 【就労時】年間収入と支出
A1: 住まいの終活『すましゅう』 | Z1: ●源泉徴収票からの転記箇所 | AC1: 出典： | AD1: 令和5年分 給与所得の源泉徴収票等の法定調書の作成と提出の手引｜国税庁
B2: 【就労時】収入と支出を調べよう
B3: 現時点と将来の年間収入と支出を書き出そう
B5: 年間収入から年間支出を差し引いてみると、家計が赤字か黒字かがわかります。
B6: 貯蓄額から老後資金とするための投資運用に充てる金額を決めましょう。
B8: =YEAR(パーソナル情報!H1) ->  | D8: 年
B9: ●年間の収入
H10: 課税所得額 | R10: 住民税率
H11: =ROUNDUP(手取り額計算!C26,0) -> 0 | I11: 万円 | R11: =R13/H11*100 ->  | S11: ％
B12: ①収入金額 | H12: ②所得税 | M12: ③社会保険料 | R12: 住民税 | V12: 年間の手取り収入 （可処分所得） | Z12: ●給与所得控除 | AC12: 出典： | AD12: No.1410 給与所得控除｜国税庁
B13: 本人 | D13: 万円 | F13: － | H13: =手取り額計算!C27 -> 0 | I13: 万円 | K13: ＋ | M13: =手取り額計算!C15 -> 0 | N13: 万円 | P13: ＋ | R13: =手取り額計算!C28 -> -11.8 | S13: 万円 | U13: ＝ | V13: =ROUNDDOWN(+C13-(H13+M13+R13),0) -> 11 | W13: 万円
B14: 配偶者 | D14: 万円 | H14: =手取り額計算!C63 -> 0 | I14: 万円 | M14: =手取り額計算!C51 -> 0 | N14: 万円 | R14: =手取り額計算!C64 -> 1.2 | S14: 万円 | V14: =ROUNDDOWN(+C14-(H14+M14+R14),0) -> -1 | W14: 万円
H15: =ROUNDUP(手取り額計算!C62,0) -> 0 | I15: 万円 | R15: =R14/H15*100 ->  | S15: ％
H16: 課税所得額 | R16: 住民税率
B18: 控除関連 | H18: 扶養配偶者 | M18: 16歳以上※ 子供等(扶養） | R18: 19-23歳 子供(扶養）
H19: あり | M19: 0 | N19: 人 | R19: 0 | S19: 人
M20: ※19－23歳の子供が居る場合は、こちらはカウントしない
H21: 70歳以上 非同居(扶養) 所得税 計算 | M21: 70歳以上 非同居(扶養) 所得税 計算 | R21: 生命保険料 控除
H22: 0 | I22: 人 | M22: 0 | N22: 人 | R22: 8 | S22: 万円
H24: 小規模企業共済等掛金控除 | M24: その他控除 | R24: 前年 ふるさと納税額 | Z24: ●基礎控除 | AC24: 出典： | AD24: No.1199 基礎控除｜国税庁
F25: 年間 | H25: 11 | I25: 万円 | N25: 万円 | R25: 13 | S25: 万円 | Z25: ●所得税の速算表 | AC25: 出典： | AD25: No.2260 所得税の税率｜国税庁
Z26: ●協会健保 健康保険・介護保険料率 | AD26: 出典： | AE26: 令和6年度の協会けんぽの保険料率は3月分（4月納付分）から改定されます | 協会けんぽ | 全国健康保険協会
N27: 年間手取り収入合計 | V27: =SUM(V13:W15) -> 10 | W27: 万円 | Z27: ●厚生年金保険料率 | AC27: 出典： | AD27: 厚生年金保険の保険料｜日本年金機構
Z28: ●雇用保険料率 | AC28: 出典： | AD28: 雇用保険料率について ｜厚生労働省
B29: =B8 ->  | D29: 年 | Z29: ●ふるさと納税控除の上限額 | AC29: 出典： | AD29: ふるさと納税の控除上限額（限度額）がわかるシミュレーション＆早見表 | ふるさと納税サイト「さとふる」
B30: ●年間の支出
B31: 支出項目 | E31: 内容 | K31: 毎月の支出① | P31: 年に数回の支出② | U31: 年間の支出 ①×12＋②
B32: 基本生活費 | E32: 食費、水道光熱費、 通信費、日用雑貨費、 教養娯楽費など | N32: 万円 | S32: 万円 | U32: =+K32*12+P32 -> 0 | W32: 万円
B33: 住居関連費 | E33: 住宅ローン、管理費、 積立金、固定資産税など | N33: 万円 | S33: 万円 | U33: =+K33*12+P33 -> 0 | W33: 万円
B34: 車両費 | E34: 駐車場代、ガソリン代、 自動車税など | N34: 万円 | S34: 万円 | U34: 0 | W34: 万円
B35: 教育・医療費 | E35: 学校教育費、塾代、 習い事の費用、 医療、介護費用など | N35: 万円 | S35: 万円 | U35: 0 | W35: 万円
B36: 保険料 | E36: 家族全員の保険料 | K36: =ROUNDUP(保険一覧!J180/10000,0) -> 0 | N36: 万円 | S36: 万円 | U36: 0 | W36: 万円
B37: 貯蓄・運用資金 | E37: 老後資金の積立貯蓄、運用資金 | N37: 万円 | S37: 万円 | U37: =+K37*12+P37 -> 0 | W37: 万円
B38: その他の支出 | E38: レジャー費、交際費、 冠婚葬祭費など | N38: 万円 | S38: 万円 | U38: 0 | W38: 万円
P40: 年間支出合計 | U40: =SUM(U32:V39) -> 0 | W40: 万円
K42: 1年間の収支 | U42: =+V27-U40 -> 10 | W42: 万円
M44: （月額）余剰/不足額 | U44: =ROUNDDOWN(U42/12,0) -> 0 | W44: 万円
B45: 未来の年間収入と支出の予測を書き出そう
B47: 昇進や定年など年間収入の大きな変化を予測して、その時点の収支を見てみましょう。
B48: 11 | D48: 年後 | E48: （記入日起算） | I48: ※収入の変化がある時を予測してください。
B49: =B48+$B$8 ->  | D49: 年
B50: ●年間の収入
H51: 課税所得額 | R51: 住民税率
H52: =手取り額計算!C97 -> 0 | I52: 万円 | R52: =R54/H52*100 ->  | S52: ％
B53: 収入金額 | H53: 所得税 | M53: 社会保険料 | R53: 住民税 | V53: 年間の手取り収入 （可処分所得）
B54: 本人 | D54: 万円 | F54: － | H54: =手取り額計算!C98 -> 0 | I54: 万円 | K54: ＋ | M54: =手取り額計算!C86 -> 0 | N54: 万円 | P54: ＋ | R54: =手取り額計算!C99 -> -6.8 | S54: 万円 | U54: ＝ | V54: =ROUNDDOWN(+C54-(H54+M54+R54),0) -> 6 | W54: 万円
B55: 配偶者 | D55: 万円 | H55: =手取り額計算!C134 -> 0 | I55: 万円 | M55: =手取り額計算!C122 -> 0 | N55: 万円 | R55: =手取り額計算!C135 -> 1.2 | S55: 万円 | V55: =ROUNDDOWN(+C55-(H55+M55+R55),0) -> -1 | W55: 万円
H56: =手取り額計算!C133 -> 0 | I56: 万円 | R56: =R55/H56*100 ->  | S56: ％
H57: 課税所得額 | R57: 住民税率
B59: 控除関連 | H59: 扶養配偶者 | M59: 16歳以上※ 子供等(扶養） | R59: 19-23歳 子供(扶養）
H60: あり | M60: 0 | N60: 人 | R60: 0 | S60: 人
M61: ※19－23歳の子供が居る場合は、こちらはカウントしない
H62: 70歳以上 非同居(扶養) 所得税 計算 | M62: 70歳以上 非同居(扶養) 所得税 計算 | R62: 生命保険料 控除
H63: 0 | I63: 人 | M63: 0 | N63: 人 | R63: 8 | S63: 万円
H65: 小規模企業共済等掛金控除 | M65: その他控除 | R65: 前年 ふるさと納税額
H66: 11 | I66: 万円 | N66: 万円 | R66: 8 | S66: 万円
N68: 年間手取り収入合計 | V68: =SUM(V54:V55) -> 5 | W68: 万円
B70: =B48 -> 11 | D70: 年後 | E70: （記入日起算）
B71: =B49 ->  | D71: 年
B72: ●年間の支出
B73: 支出項目 | E73: 内容 | K73: 毎月の支出① | P73: 年に数回の支出② | U73: 年間の支出 ①×12＋②
B74: 基本生活費 | E74: 食費、水道光熱費、 通信費、日用雑貨費、 教養娯楽費など | K74: =K32 -> 0 | N74: 万円 | P74: =P32 -> 0 | S74: 万円 | V74: =+K74*12+P74 -> 0 | W74: 万円
B75: 住居関連費 | E75: 住宅ローン、管理費、 積立金、固定資産税など | K75: 0 | N75: 万円 | P75: 0 | S75: 万円 | V75: =+K75*12+P75 -> 0 | W75: 万円
B76: 車両費 | E76: 駐車場代、ガソリン代、 自動車税など | K76: 0 | N76: 万円 | P76: 0 | S76: 万円 | V76: 0 | W76: 万円
B77: 教育・医療費 | E77: 学校教育費、塾代、 習い事の費用、 医療、介護費用など | K77: 0 | N77: 万円 | P77: 0 | S77: 万円 | V77: 0 | W77: 万円
B78: 保険料 | E78: 家族全員の保険料 | K78: 0 | N78: 万円 | P78: 0 | S78: 万円 | V78: 0 | W78: 万円
B79: 貯蓄・運用資金 | E79: 老後資金の積立貯蓄、運用資金 | K79: 0 | N79: 万円 | P79: 0 | S79: 万円 | V79: 0 | W79: 万円
B80: その他の支出 | E80: レジャー費、交際費、 冠婚葬祭費など | K80: 0 | N80: 万円 | P80: 0 | S80: 万円 | V80: 0 | W80: 万円
P82: 年間支出合計 | U82: =SUM(U74:V81) -> 0 | W82: 万円
K84: 1年間の収支 | U84: =+V68-U82 -> 5 | W84: 万円
M86: （月額）余剰/不足額 | U86: =ROUNDDOWN(U84/12,0) -> 0 | W86: 万円
B88: 未来の年間収入と支出の予測を書き出そう
B90: 昇進や定年など年間収入の大きな変化を予測して、その時点の収支を見てみましょう。
B91: 20 | D91: 年後 | E91: （記入日起算） | I91: ※収入の変化がある時を予測してください。
B92: =B91+$B$8 ->  | D92: 年
B93: ●年間の収入
H94: 課税所得額 | R94: 住民税率
H95: =手取り額計算!C168 -> 0 | I95: 万円 | R95: =R97/H95*100 ->  | S95: ％
B96: 収入金額 | H96: 所得税 | M96: 社会保険料 | R96: 住民税 | V96: 年間の手取り収入 （可処分所得）
B97: 本人 | D97: 万円 | F97: － | H97: =手取り額計算!C169 -> 0 | I97: 万円 | K97: ＋ | M97: =手取り額計算!C157 -> 0 | N97: 万円 | P97: ＋ | R97: =手取り額計算!C170 -> 1.2 | S97: 万円 | U97: ＝ | V97: =ROUNDDOWN(+C97-(H97+M97+R97),0) -> -1 | W97: 万円
B98: 配偶者 | D98: 万円 | H98: =手取り額計算!C205 -> 0 | I98: 万円 | M98: =手取り額計算!C193 -> 0 | N98: 万円 | R98: =手取り額計算!C206 -> 1.2 | S98: 万円 | V98: =ROUNDDOWN(+C98-(H98+M98+R98),0) -> -1 | W98: 万円
H99: =手取り額計算!C204 -> 0 | I99: 万円 | R99: =R98/H99*100 ->  | S99: ％
H100: 課税所得額 | R100: 住民税率
B102: 控除関連 | H102: 扶養配偶者 | M102: 16歳以上※ 子供等(扶養） | R102: 19-23歳 子供(扶養）
H103: あり | M103: 0 | N103: 人 | R103: 0 | S103: 人
M104: ※19－23歳の子供が居る場合は、こちらはカウントしない
H105: 70歳以上 非同居(扶養) 所得税 計算 | M105: 70歳以上 非同居(扶養) 所得税 計算 | R105: 生命保険料 控除
H106: 0 | I106: 人 | M106: 0 | N106: 人 | R106: 5 | S106: 万円
H108: 小規模企業共済等掛金控除 | M108: その他控除 | R108: 前年 ふるさと納税額
I109: 万円 | N109: 万円 | S109: 万円
N111: 年間手取り収入合計 | V111: =SUM(V97:V98) -> -2 | W111: 万円
B113: =B91 -> 20 | D113: 年後 | E113: （記入日起算）
B114: =B92 ->  | D114: 年
B115: ●年間の支出
B116: 支出項目 | E116: 内容 | K116: 毎月の支出① | P116: 年に数回の支出② | U116: 年間の支出 ①×12＋②
B117: 基本生活費 | E117: 食費、水道光熱費、 通信費、日用雑貨費、 教養娯楽費など | K117: =K75 -> 0 | N117: 万円 | P117: =P75 -> 0 | S117: 万円 | V117: =+K117*12+P117 -> 0 | W117: 万円
B118: 住居関連費 | E118: 住宅ローン、管理費、 積立金、固定資産税など | K118: 0 | N118: 万円 | P118: 0 | S118: 万円 | V118: =+K118*12+P118 -> 0 | W118: 万円
B119: 車両費 | E119: 駐車場代、ガソリン代、 自動車税など | K119: 0 | N119: 万円 | P119: 0 | S119: 万円 | V119: 0 | W119: 万円
B120: 教育・医療費 | E120: 学校教育費、塾代、 習い事の費用、 医療、介護費用など | K120: 0 | N120: 万円 | P120: 0 | S120: 万円 | V120: 0 | W120: 万円
B121: 保険料 | E121: 家族全員の保険料 | K121: 0 | N121: 万円 | P121: 0 | S121: 万円 | V121: 0 | W121: 万円
B122: 貯蓄・運用資金 | E122: 老後資金の積立貯蓄、運用資金 | K122: 0 | N122: 万円 | P122: 0 | S122: 万円 | V122: 0 | W122: 万円
B123: その他の支出 | E123: レジャー費、交際費、 冠婚葬祭費など | K123: 0 | N123: 万円 | P123: 0 | S123: 万円 | V123: 0 | W123: 万円
P125: 年間支出合計 | U125: =SUM(U117:V124) -> 0 | W125: 万円
K127: 1年間の収支 | U127: =+V111-U125 -> -2 | W127: 万円
M129: （月額）余剰/不足額 | U129: =ROUNDDOWN(U127/12,0) -> 0 | W129: 万円
B131: 未来の年間収入と支出の予測を書き出そう
B133: 昇進や定年など年間収入の大きな変化を予測して、その時点の収支を見てみましょう。
B134: 30 | D134: 年後 | E134: （記入日起算） | I134: ※収入の変化がある時を予測してください。
B135: =B134+$B$8 ->  | D135: 年
B136: ●年間の収入
H137: 課税所得額 | R137: 住民税率
H138: =手取り額計算!C239 -> 0 | I138: 万円 | R138: =R140/H138*100 ->  | S138: ％
B139: 収入金額 | H139: 所得税 | M139: 社会保険料 | R139: 住民税 | V139: 年間の手取り収入 （可処分所得）
B140: 本人 | D140: 万円 | F140: － | H140: =手取り額計算!C240 -> 0 | I140: 万円 | K140: ＋ | M140: =手取り額計算!C228 -> 0 | N140: 万円 | P140: ＋ | R140: =手取り額計算!C241 -> 1.2 | S140: 万円 | U140: ＝ | V140: =ROUNDDOWN(+C140-(H140+M140+R140),0) -> -1 | W140: 万円
B141: 配偶者 | D141: 万円 | H141: =手取り額計算!C276 -> 0 | I141: 万円 | M141: =手取り額計算!C264 -> 0 | N141: 万円 | R141: =手取り額計算!C277 -> 1.2 | S141: 万円 | V141: =ROUNDDOWN(+C141-(H141+M141+R141),0) -> -1 | W141: 万円
H142: =手取り額計算!C275 -> 0 | I142: 万円 | R142: =R141/H142*100 ->  | S142: ％
H143: 課税所得額 | R143: 住民税率
B145: 控除関連 | H145: 扶養配偶者 | M145: 16歳以上※ 子供等(扶養） | R145: 19-23歳 子供(扶養）
H146: あり | M146: 0 | N146: 人 | R146: 0 | S146: 人
M147: ※19－23歳の子供が居る場合は、こちらはカウントしない
H148: 70歳以上 非同居(扶養) 所得税 計算 | M148: 70歳以上 非同居(扶養) 所得税 計算 | R148: 生命保険料 控除
H149: 0 | I149: 人 | M149: 0 | N149: 人 | R149: 5 | S149: 万円
H151: 小規模企業共済等掛金控除 | M151: その他控除 | R151: 前年 ふるさと納税額
I152: 万円 | N152: 万円 | S152: 万円
N154: 年間手取り収入合計 | V154: =SUM(V140:V141) -> -2 | W154: 万円
B156: =B134 -> 30 | D156: 年後 | E156: （記入日起算）
B157: =B135 ->  | D157: 年
B158: ●年間の支出
B159: 支出項目 | E159: 内容 | K159: 毎月の支出① | P159: 年に数回の支出② | U159: 年間の支出 ①×12＋②
B160: 基本生活費 | E160: 食費、水道光熱費、 通信費、日用雑貨費、 教養娯楽費など | K160: =K118 -> 0 | N160: 万円 | P160: =P118 -> 0 | S160: 万円 | V160: =+K160*12+P160 -> 0 | W160: 万円
B161: 住居関連費 | E161: 住宅ローン、管理費、 積立金、固定資産税など | K161: 0 | N161: 万円 | P161: 0 | S161: 万円 | V161: =+K161*12+P161 -> 0 | W161: 万円
B162: 車両費 | E162: 駐車場代、ガソリン代、 自動車税など | K162: 0 | N162: 万円 | P162: 0 | S162: 万円 | V162: 0 | W162: 万円
B163: 教育・医療費 | E163: 学校教育費、塾代、 習い事の費用、 医療、介護費用など | K163: 0 | N163: 万円 | P163: 0 | S163: 万円 | V163: 0 | W163: 万円
B164: 保険料 | E164: 家族全員の保険料 | K164: 0 | N164: 万円 | P164: 0 | S164: 万円 | V164: 0 | W164: 万円
B165: 貯蓄・運用資金 | E165: 老後資金の積立貯蓄、運用資金 | K165: 0 | N165: 万円 | P165: 0 | S165: 万円 | V165: 0 | W165: 万円
B166: その他の支出 | E166: レジャー費、交際費、 冠婚葬祭費など | K166: 0 | N166: 万円 | P166: 0 | S166: 万円 | V166: 0 | W166: 万円
P168: 年間支出合計 | U168: =SUM(U160:V167) -> 0 | W168: 万円
K170: 1年間の収支 | U170: =V154-U168 -> -2 | W170: 万円
M172: （月額）余剰/不足額 | U172: =ROUNDDOWN(U170/12,0) -> 0 | W172: 万円

Sheet 手取り額計算 (hidden)
A1: 住まいの終活『すましゅう』
B2: 年収から手取り額を簡易計算（会社員向け）2020.4～
B3: =【就労時】年間収入と支出!B8 ->  | C3: 年
B4: 本人 | D4: ←この色のセルに入力ください
G5: 給与所得控除 | K5: 本人収入 | L5: vlookup関数のための数値
B6: 年収 | C6: =【就労時】年間収入と支出!C13 -> 0 | D6: 万円 | E6: ① | G6: 年収 | H6: 税率 | I6: 速算加減値 | K6: 0 | L6: 2
B7: 扶養配偶者 | C7: =【就労時】年間収入と支出!H19 -> あり | G7: 0 | H7: 0.4 | I7: -10 | K7: 1096 | L7: 3
B8: 配偶者の年収 | C8: =【就労時】年間収入と支出!C14 -> 0 | D8: 万円 | G8: 181 | H8: 0.3 | I8: 8 | K8: 1146 | L8: 4
B9: 16歳以上の子供等(扶養） | C9: =【就労時】年間収入と支出!M19 -> 0 | D9: 人 | G9: 361 | H9: 0.2 | I9: 44 | K9: 1196 | L9: 5
B10: 19-23歳の子供(扶養） | C10: =【就労時】年間収入と支出!R19 -> 0 | D10: 人 | G10: 661 | H10: 0.1 | I10: 110
B11: 70歳以上・非同居(扶養) | C11: =【就労時】年間収入と支出!H22 -> 0 | D11: 人 | G11: 851 | H11: 0 | I11: 195 | K11: 配偶者控除額
B12: 70歳以上・同居(扶養) | C12: =【就労時】年間収入と支出!M22 -> 0 | D12: 人 | L12: 本人収入
K13: 配偶者収入 | L13: 0 | M13: 1096 | N13: 1146 | O13: 1196
B14: 給与所得控除 | C14: =IF(C6*VLOOKUP(C6,G7:I11,2,TRUE)+VLOOKUP(C6,G7:I11,3,TRUE)<55,55,C6*VLOOKUP(C6,G7:I11,2,TRUE)+VLOOKUP(C6,G7:I11,3,TRUE)) -> 55 | D14: 万円 | K14: 0 | L14: 38 | M14: 26 | N14: 13 | O14: 0
B15: 社会保険料控除(15%) | C15: =C6*15% -> 0 | D15: 万円 | E15: ② | K15: 151 | L15: 36 | M15: 24 | N15: 12 | O15: 0
B16: 基礎控除 | C16: =VLOOKUP(C6,G30:H33,2,TRUE) -> 48 | D16: 万円 | G16: 所得税速算表 | K16: 156 | L16: 31 | M16: 21 | N16: 11 | O16: 0
B17: 配偶者控除 | C17: =IF(C7="あり",VLOOKUP(C8,K14:O23,VLOOKUP(C6,K6:L9,2,TRUE),TRUE),0) -> 38 | D17: 万円 | G17: 課税所得 | H17: 税率 | I17: 速算加減値 | K17: 161 | L17: 26 | M17: 18 | N17: 9 | O17: 0
B18: 他扶養控除 | C18: =C9*38+C10*63+C11*48+C12*58 -> 0 | D18: 万円 | G18: 0 | H18: 0.05 | I18: 0 | K18: 166 | L18: 21 | M18: 14 | N18: 7 | O18: 0
B19: 生命保険料控除 | C19: =【就労時】年間収入と支出!R22 -> 8 | D19: 万円 | G19: 196 | H19: 0.1 | I19: -9.75 | K19: 175 | L19: 16 | M19: 11 | N19: 6 | O19: 0
B20: ideco控除 | C20: =【就労時】年間収入と支出!H25 -> 11 | D20: 万円 | G20: 331 | H20: 0.2 | I20: -42.75 | K20: 183 | L20: 11 | M20: 8 | N20: 4 | O20: 0
B21: その他控除 | C21: =【就労時】年間収入と支出!M25 -> 0 | D21: 万円 | G21: 696 | H21: 0.23 | I21: -63.6 | K21: 190 | L21: 6 | M21: 4 | N21: 2 | O21: 0
B22: 控除額計 | C22: =SUM(C14:C21) -> 160 | D22: 万円 | E22: ③ | G22: 901 | H22: 0.33 | I22: -153.6 | K22: 197 | L22: 3 | M22: 2 | N22: 1 | O22: 0
G23: 1801 | H23: 0.4 | I23: -279.6 | K23: 201 | L23: 0 | M23: 0 | N23: 0 | O23: 0
B24: 前年ふるさと納税額 | C24: =【就労時】年間収入と支出!R25 -> 13 | D24: 万円 | G24: 4001 | H24: 0.45 | I24: -479.6
B26: 課税所得 | C26: =IF(C6-C22>0,C6-C22,0) -> 0 | D26: 万円 | E26: ①－③
B27: 所得税 | C27: =C26*(VLOOKUP(C26,G18:I24,2,TRUE))+VLOOKUP(C26,G18:I24,3,TRUE) -> 0 | D27: 万円
B28: 住民税 | C28: =IF(C26*10%>0,C26*10%,0)+1-C24+0.2 -> -11.8 | D28: 万円 | G28: 基礎控除
B29: 税合計 | C29: =SUM(C27:C28) -> -11.8 | D29: 万円 | E29: ④ | G29: 年収 | H29: 控除額
B30: 税/年収比 | C30: =C29/C6*100 ->  | D30: ％ | G30: 0 | H30: 48
B31: 手取り額 | C31: =C6-C15-C29 -> 11.8 | D31: 万円 | E31: ①－②－④ | G31: 2596 | H31: 32
B32: 手取り額/年収比 | C32: =C31/C6*100 ->  | D32: ％ | G32: 2646 | H32: 16
G33: 2696 | H33: 0
B34: ※会社員で概ね年収150万円以上（社会保険加入者）の方向け。
B35: ※生命保険料控除額はCASEによって異なるためデフォルトでは5万円。
B36: ※住民税と所得税控除額が異なる分、住民税額に＋1万円して計算。
B37: ※住宅ローン控除は考慮せず。
B39: =【就労時】年間収入と支出!B8 ->  | C39: 年
B40: 配偶者 | D40: ←この色のセルに入力ください
G41: 給与所得控除 | K41: 本人収入 | L41: vlookup関数のための数値
B42: 年収 | C42: =【就労時】年間収入と支出!C14 -> 0 | D42: 万円 | E42: ① | G42: 年収 | H42: 税率 | I42: 速算加減値 | K42: 0 | L42: 2
B43: 扶養配偶者 | G43: 0 | H43: 0.4 | I43: -10 | K43: 1096 | L43: 3
B44: 配偶者の年収 | D44: 万円 | G44: 181 | H44: 0.3 | I44: 8 | K44: 1146 | L44: 4
B45: 16歳以上の子供等(扶養） | D45: 人 | G45: 361 | H45: 0.2 | I45: 44 | K45: 1196 | L45: 5
B46: 19-23歳の子供(扶養） | D46: 人 | G46: 661 | H46: 0.1 | I46: 110
B47: 70歳以上・非同居(扶養) | D47: 人 | G47: 851 | H47: 0 | I47: 195 | K47: 配偶者控除額
B48: 70歳以上・同居(扶養) | D48: 人 | L48: 本人収入
K49: 配偶者収入 | L49: 0 | M49: 1096 | N49: 1146 | O49: 1196
B50: 給与所得控除 | C50: =IF(C42*VLOOKUP(C42,G43:I47,2,TRUE)+VLOOKUP(C42,G43:I47,3,TRUE)<55,55,C42*VLOOKUP(C42,G43:I47,2,TRUE)+VLOOKUP(C42,G43:I47,3,TRUE)) -> 55 | D50: 万円 | K50: 0 | L50: 38 | M50: 26 | N50: 13 | O50: 0
B51: 社会保険料控除(15%) | C51: =C42*15% -> 0 | D51: 万円 | E51: ② | K51: 151 | L51: 36 | M51: 24 | N51: 12 | O51: 0
B52: 基礎控除 | C52: =VLOOKUP(C42,G66:H69,2,TRUE) -> 48 | D52: 万円 | G52: 所得税速算表 | K52: 156 | L52: 31 | M52: 21 | N52: 11 | O52: 0
B53: 配偶者控除 | C53: =IF(C43="あり",VLOOKUP(C44,K50:O59,VLOOKUP(C42,K42:L45,2,TRUE),TRUE),0) -> 0 | D53: 万円 | G53: 課税所得 | H53: 税率 | I53: 速算加減値 | K53: 161 | L53: 26 | M53: 18 | N53: 9 | O53: 0
B54: 他扶養控除 | C54: =C45*38+C46*63+C47*48+C48*58 -> 0 | D54: 万円 | G54: 0 | H54: 0.05 | I54: 0 | K54: 166 | L54: 21 | M54: 14 | N54: 7 | O54: 0
B55: 生命保険料控除 | D55: 万円 | G55: 196 | H55: 0.1 | I55: -9.75 | K55: 175 | L55: 16 | M55: 11 | N55: 6 | O55: 0
B56: ideco控除 | D56: 万円 | G56: 331 | H56: 0.2 | I56: -42.75 | K56: 183 | L56: 11 | M56: 8 | N56: 4 | O56: 0
B57: その他控除 | D57: 万円 | G57: 696 | H57: 0.23 | I57: -63.6 | K57: 190 | L57: 6 | M57: 4 | N57: 2 | O57: 0
B58: 控除額計 | C58: =SUM(C50:C57) -> 103 | D58: 万円 | E58: ③ | G58: 901 | H58: 0.33 | I58: -153.6 | K58: 197 | L58: 3 | M58: 2 | N58: 1 | O58: 0
G59: 1801 | H59: 0.4 | I59: -279.6 | K59: 201 | L59: 0 | M59: 0 | N59: 0 | O59: 0
B60: 前年ふるさと納税額 | D60: 万円 | G60: 4001 | H60: 0.45 | I60: -479.6
B62: 課税所得 | C62: =IF(C42-C58>0,C42-C58,0) -> 0 | D62: 万円 | E62: ①－③
B63: 所得税 | C63: =C62*(VLOOKUP(C62,G54:I60,2,TRUE))+VLOOKUP(C62,G54:I60,3,TRUE) -> 0 | D63: 万円
B64: 住民税 | C64: =IF(C62*10%>0,C62*10%,0)+1-C60+0.2 -> 1.2 | D64: 万円 | G64: 基礎控除
B65: 税合計 | C65: =SUM(C63:C64) -> 1.2 | D65: 万円 | E65: ④ | G65: 年収 | H65: 控除額
B66: 税/年収比 | C66: =C65/C42*100 ->  | D66: ％ | G66: 0 | H66: 48
B67: 手取り額 | C67: =C42-C51-C65 -> -1.2 | D67: 万円 | E67: ①－②－④ | G67: 2596 | H67: 32
B68: 手取り額/年収比 | C68: =C67/C42*100 ->  | D68: ％ | G68: 2646 | H68: 16
G69: 2696 | H69: 0
B70: ※会社員で概ね年収150万円以上（社会保険加入者）の方向け。
B71: ※生命保険料控除額はCASEによって異なるためデフォルトでは5万円。
B72: ※住民税と所得税控除額が異なる分、住民税額に＋1万円して計算。
B73: ※住宅ローン控除は考慮せず。
B74: =【就労時】年間収入と支出!B49 ->  | C74: 年
B75: 本人 | D75: ←この色のセルに入力ください
G76: 給与所得控除 | K76: 本人収入 | L76: vlookup関数のための数値
B77: 年収 | C77: =【就労時】年間収入と支出!C54 -> 0 | D77: 万円 | E77: ① | G77: 年収 | H77: 税率 | I77: 速算加減値 | K77: 0 | L77: 2
B78: 扶養配偶者 | C78: =【就労時】年間収入と支出!H60 -> あり | G78: 0 | H78: 0.4 | I78: -10 | K78: 1096 | L78: 3
B79: 配偶者の年収 | C79: =【就労時】年間収入と支出!C55 -> 0 | D79: 万円 | G79: 181 | H79: 0.3 | I79: 8 | K79: 1146 | L79: 4
B80: 16歳以上の子供等(扶養） | C80: =【就労時】年間収入と支出!M60 -> 0 | D80: 人 | G80: 361 | H80: 0.2 | I80: 44 | K80: 1196 | L80: 5
B81: 19-23歳の子供(扶養） | C81: =【就労時】年間収入と支出!R60 -> 0 | D81: 人 | G81: 661 | H81: 0.1 | I81: 110
B82: 70歳以上・非同居(扶養) | C82: =【就労時】年間収入と支出!H63 -> 0 | D82: 人 | G82: 851 | H82: 0 | I82: 195 | K82: 配偶者控除額
B83: 70歳以上・同居(扶養) | C83: =【就労時】年間収入と支出!M63 -> 0 | D83: 人 | L83: 本人収入
K84: 配偶者収入 | L84: 0 | M84: 1096 | N84: 1146 | O84: 1196
B85: 給与所得控除 | C85: =IF(C77*VLOOKUP(C77,G78:I82,2,TRUE)+VLOOKUP(C77,G78:I82,3,TRUE)<55,55,C77*VLOOKUP(C77,G78:I82,2,TRUE)+VLOOKUP(C77,G78:I82,3,TRUE)) -> 55 | D85: 万円 | K85: 0 | L85: 38 | M85: 26 | N85: 13 | O85: 0
B86: 社会保険料控除(15%) | C86: =C77*15% -> 0 | D86: 万円 | E86: ② | K86: 151 | L86: 36 | M86: 24 | N86: 12 | O86: 0
B87: 基礎控除 | C87: =VLOOKUP(C77,G101:H104,2,TRUE) -> 48 | D87: 万円 | G87: 所得税速算表 | K87: 156 | L87: 31 | M87: 21 | N87: 11 | O87: 0
B88: 配偶者控除 | C88: =IF(C78="あり",VLOOKUP(C79,K85:O94,VLOOKUP(C77,K77:L80,2,TRUE),TRUE),0) -> 38 | D88: 万円 | G88: 課税所得 | H88: 税率 | I88: 速算加減値 | K88: 161 | L88: 26 | M88: 18 | N88: 9 | O88: 0
B89: 他扶養控除 | C89: =C80*38+C81*63+C82*48+C83*58 -> 0 | D89: 万円 | G89: 0 | H89: 0.05 | I89: 0 | K89: 166 | L89: 21 | M89: 14 | N89: 7 | O89: 0
B90: 生命保険料控除 | C90: =【就労時】年間収入と支出!R63 -> 8 | D90: 万円 | G90: 196 | H90: 0.1 | I90: -9.75 | K90: 175 | L90: 16 | M90: 11 | N90: 6 | O90: 0
B91: ideco控除 | C91: =【就労時】年間収入と支出!H66 -> 11 | D91: 万円 | G91: 331 | H91: 0.2 | I91: -42.75 | K91: 183 | L91: 11 | M91: 8 | N91: 4 | O91: 0
B92: その他控除 | C92: =【就労時】年間収入と支出!M66 -> 0 | D92: 万円 | G92: 696 | H92: 0.23 | I92: -63.6 | K92: 190 | L92: 6 | M92: 4 | N92: 2 | O92: 0
B93: 控除額計 | C93: =SUM(C85:C92) -> 160 | D93: 万円 | E93: ③ | G93: 901 | H93: 0.33 | I93: -153.6 | K93: 197 | L93: 3 | M93: 2 | N93: 1 | O93: 0
G94: 1801 | H94: 0.4 | I94: -279.6 | K94: 201 | L94: 0 | M94: 0 | N94: 0 | O94: 0
B95: 前年ふるさと納税額 | C95: =【就労時】年間収入と支出!R66 -> 8 | D95: 万円 | G95: 4001 | H95: 0.45 | I95: -479.6
B97: 課税所得 | C97: =IF(C77-C93>0,C77-C93,0) -> 0 | D97: 万円 | E97: ①－③
B98: 所得税 | C98: =C97*(VLOOKUP(C97,G89:I95,2,TRUE))+VLOOKUP(C97,G89:I95,3,TRUE) -> 0 | D98: 万円
B99: 住民税 | C99: =IF(C97*10%>0,C97*10%,0)+1-C95+0.2 -> -6.8 | D99: 万円 | G99: 基礎控除
B100: 税合計 | C100: =SUM(C98:C99) -> -6.8 | D100: 万円 | E100: ④ | G100: 年収 | H100: 控除額
B101: 税/年収比 | C101: =C100/C77*100 ->  | D101: ％ | G101: 0 | H101: 48
B102: 手取り額 | C102: =C77-C86-C100 -> 6.8 | D102: 万円 | E102: ①－②－④ | G102: 2596 | H102: 32
B103: 手取り額/年収比 | C103: =C102/C77*100 ->  | D103: ％ | G103: 2646 | H103: 16
G104: 2696 | H104: 0
B105: ※会社員で概ね年収150万円以上（社会保険加入者）の方向け。
B106: ※生命保険料控除額はCASEによって異なるためデフォルトでは5万円。
B107: ※住民税と所得税控除額が異なる分、住民税額に＋1万円して計算。
B108: ※住宅ローン控除は考慮せず。
B110: =B74 ->  | C110: 年
B111: 配偶者 | D111: ←この色のセルに入力ください
G112: 給与所得控除 | K112: 本人収入 | L112: vlookup関数のための数値
B113: 年収 | C113: =【就労時】年間収入と支出!C55 -> 0 | D113: 万円 | E113: ① | G113: 年収 | H113: 税率 | I113: 速算加減値 | K113: 0 | L113: 2
B114: 扶養配偶者 | G114: 0 | H114: 0.4 | I114: -10 | K114: 1096 | L114: 3
B115: 配偶者の年収 | D115: 万円 | G115: 181 | H115: 0.3 | I115: 8 | K115: 1146 | L115: 4
B116: 16歳以上の子供等(扶養） | D116: 人 | G116: 361 | H116: 0.2 | I116: 44 | K116: 1196 | L116: 5
B117: 19-23歳の子供(扶養） | D117: 人 | G117: 661 | H117: 0.1 | I117: 110
B118: 70歳以上・非同居(扶養) | D118: 人 | G118: 851 | H118: 0 | I118: 195 | K118: 配偶者控除額
B119: 70歳以上・同居(扶養) | D119: 人 | L119: 本人収入
K120: 配偶者収入 | L120: 0 | M120: 1096 | N120: 1146 | O120: 1196
B121: 給与所得控除 | C121: =IF(C113*VLOOKUP(C113,G114:I118,2,TRUE)+VLOOKUP(C113,G114:I118,3,TRUE)<55,55,C113*VLOOKUP(C113,G114:I118,2,TRUE)+VLOOKUP(C113,G114:I118,3,TRUE)) -> 55 | D121: 万円 | K121: 0 | L121: 38 | M121: 26 | N121: 13 | O121: 0
B122: 社会保険料控除(15%) | C122: =C113*15% -> 0 | D122: 万円 | E122: ② | K122: 151 | L122: 36 | M122: 24 | N122: 12 | O122: 0
B123: 基礎控除 | C123: =VLOOKUP(C113,G137:H140,2,TRUE) -> 48 | D123: 万円 | G123: 所得税速算表 | K123: 156 | L123: 31 | M123: 21 | N123: 11 | O123: 0
B124: 配偶者控除 | C124: =IF(C114="あり",VLOOKUP(C115,K121:O130,VLOOKUP(C113,K113:L116,2,TRUE),TRUE),0) -> 0 | D124: 万円 | G124: 課税所得 | H124: 税率 | I124: 速算加減値 | K124: 161 | L124: 26 | M124: 18 | N124: 9 | O124: 0
B125: 他扶養控除 | C125: =C116*38+C117*63+C118*48+C119*58 -> 0 | D125: 万円 | G125: 0 | H125: 0.05 | I125: 0 | K125: 166 | L125: 21 | M125: 14 | N125: 7 | O125: 0
B126: 生命保険料控除 | D126: 万円 | G126: 196 | H126: 0.1 | I126: -9.75 | K126: 175 | L126: 16 | M126: 11 | N126: 6 | O126: 0
B127: ideco控除 | D127: 万円 | G127: 331 | H127: 0.2 | I127: -42.75 | K127: 183 | L127: 11 | M127: 8 | N127: 4 | O127: 0
B128: その他控除 | D128: 万円 | G128: 696 | H128: 0.23 | I128: -63.6 | K128: 190 | L128: 6 | M128: 4 | N128: 2 | O128: 0
B129: 控除額計 | C129: =SUM(C121:C128) -> 103 | D129: 万円 | E129: ③ | G129: 901 | H129: 0.33 | I129: -153.6 | K129: 197 | L129: 3 | M129: 2 | N129: 1 | O129: 0
G130: 1801 | H130: 0.4 | I130: -279.6 | K130: 201 | L130: 0 | M130: 0 | N130: 0 | O130: 0
B131: 前年ふるさと納税額 | D131: 万円 | G131: 4001 | H131: 0.45 | I131: -479.6
B133: 課税所得 | C133: =IF(C113-C129>0,C113-C129,0) -> 0 | D133: 万円 | E133: ①－③
B134: 所得税 | C134: =C133*(VLOOKUP(C133,G125:I131,2,TRUE))+VLOOKUP(C133,G125:I131,3,TRUE) -> 0 | D134: 万円
B135: 住民税 | C135: =IF(C133*10%>0,C133*10%,0)+1-C131+0.2 -> 1.2 | D135: 万円 | G135: 基礎控除
B136: 税合計 | C136: =SUM(C134:C135) -> 1.2 | D136: 万円 | E136: ④ | G136: 年収 | H136: 控除額
B137: 税/年収比 | C137: =C136/C113*100 ->  | D137: ％ | G137: 0 | H137: 48
B138: 手取り額 | C138: =C113-C122-C136 -> -1.2 | D138: 万円 | E138: ①－②－④ | G138: 2596 | H138: 32
B139: 手取り額/年収比 | C139: =C138/C113*100 ->  | D139: ％ | G139: 2646 | H139: 16
G140: 2696 | H140: 0
B141: ※会社員で概ね年収150万円以上（社会保険加入者）の方向け。
B142: ※生命保険料控除額はCASEによって異なるためデフォルトでは5万円。
B143: ※住民税と所得税控除額が異なる分、住民税額に＋1万円して計算。
B144: ※住宅ローン控除は考慮せず。
B145: =【就労時】年間収入と支出!B92 ->  | C145: 年
B146: 本人 | D146: ←この色のセルに入力ください
G147: 給与所得控除 | K147: 本人収入 | L147: vlookup関数のための数値
B148: 年収 | C148: =【就労時】年間収入と支出!C97 -> 0 | D148: 万円 | E148: ① | G148: 年収 | H148: 税率 | I148: 速算加減値 | K148: 0 | L148: 2
B149: 扶養配偶者 | C149: =【就労時】年間収入と支出!H103 -> あり | G149: 0 | H149: 0.4 | I149: -10 | K149: 1096 | L149: 3
B150: 配偶者の年収 | C150: =【就労時】年間収入と支出!C98 -> 0 | D150: 万円 | G150: 181 | H150: 0.3 | I150: 8 | K150: 1146 | L150: 4
B151: 16歳以上の子供等(扶養） | C151: =【就労時】年間収入と支出!M103 -> 0 | D151: 人 | G151: 361 | H151: 0.2 | I151: 44 | K151: 1196 | L151: 5
B152: 19-23歳の子供(扶養） | C152: =【就労時】年間収入と支出!R103 -> 0 | D152: 人 | G152: 661 | H152: 0.1 | I152: 110
B153: 70歳以上・非同居(扶養) | C153: =【就労時】年間収入と支出!H106 -> 0 | D153: 人 | G153: 851 | H153: 0 | I153: 195 | K153: 配偶者控除額
B154: 70歳以上・同居(扶養) | C154: =【就労時】年間収入と支出!M106 -> 0 | D154: 人 | L154: 本人収入
K155: 配偶者収入 | L155: 0 | M155: 1096 | N155: 1146 | O155: 1196
B156: 給与所得控除 | C156: =IF(C148*VLOOKUP(C148,G149:I153,2,TRUE)+VLOOKUP(C148,G149:I153,3,TRUE)<55,55,C148*VLOOKUP(C148,G149:I153,2,TRUE)+VLOOKUP(C148,G149:I153,3,TRUE)) -> 55 | D156: 万円 | K156: 0 | L156: 38 | M156: 26 | N156: 13 | O156: 0
B157: 社会保険料控除(15%) | C157: =C148*15% -> 0 | D157: 万円 | E157: ② | K157: 151 | L157: 36 | M157: 24 | N157: 12 | O157: 0
B158: 基礎控除 | C158: =VLOOKUP(C148,G172:H175,2,TRUE) -> 48 | D158: 万円 | G158: 所得税速算表 | K158: 156 | L158: 31 | M158: 21 | N158: 11 | O158: 0
B159: 配偶者控除 | C159: =IF(C149="あり",VLOOKUP(C150,K156:O165,VLOOKUP(C148,K148:L151,2,TRUE),TRUE),0) -> 38 | D159: 万円 | G159: 課税所得 | H159: 税率 | I159: 速算加減値 | K159: 161 | L159: 26 | M159: 18 | N159: 9 | O159: 0
B160: 他扶養控除 | C160: =C151*38+C152*63+C153*48+C154*58 -> 0 | D160: 万円 | G160: 0 | H160: 0.05 | I160: 0 | K160: 166 | L160: 21 | M160: 14 | N160: 7 | O160: 0
B161: 生命保険料控除 | C161: =【就労時】年間収入と支出!R106 -> 5 | D161: 万円 | G161: 196 | H161: 0.1 | I161: -9.75 | K161: 175 | L161: 16 | M161: 11 | N161: 6 | O161: 0
B162: ideco控除 | C162: =【就労時】年間収入と支出!H109 -> 0 | D162: 万円 | G162: 331 | H162: 0.2 | I162: -42.75 | K162: 183 | L162: 11 | M162: 8 | N162: 4 | O162: 0
B163: その他控除 | C163: =【就労時】年間収入と支出!M109 -> 0 | D163: 万円 | G163: 696 | H163: 0.23 | I163: -63.6 | K163: 190 | L163: 6 | M163: 4 | N163: 2 | O163: 0
B164: 控除額計 | C164: =SUM(C156:C163) -> 146 | D164: 万円 | E164: ③ | G164: 901 | H164: 0.33 | I164: -153.6 | K164: 197 | L164: 3 | M164: 2 | N164: 1 | O164: 0
G165: 1801 | H165: 0.4 | I165: -279.6 | K165: 201 | L165: 0 | M165: 0 | N165: 0 | O165: 0
B166: 前年ふるさと納税額 | C166: =【就労時】年間収入と支出!R109 -> 0 | D166: 万円 | G166: 4001 | H166: 0.45 | I166: -479.6
B168: 課税所得 | C168: =IF(C148-C164>0,C148-C164,0) -> 0 | D168: 万円 | E168: ①－③
B169: 所得税 | C169: =C168*(VLOOKUP(C168,G160:I166,2,TRUE))+VLOOKUP(C168,G160:I166,3,TRUE) -> 0 | D169: 万円
B170: 住民税 | C170: =IF(C168*10%>0,C168*10%,0)+1-C166+0.2 -> 1.2 | D170: 万円 | G170: 基礎控除
B171: 税合計 | C171: =SUM(C169:C170) -> 1.2 | D171: 万円 | E171: ④ | G171: 年収 | H171: 控除額
B172: 税/年収比 | C172: =C171/C148*100 ->  | D172: ％ | G172: 0 | H172: 48
B173: 手取り額 | C173: =C148-C157-C171 -> -1.2 | D173: 万円 | E173: ①－②－④ | G173: 2596 | H173: 32
B174: 手取り額/年収比 | C174: =C173/C148*100 ->  | D174: ％ | G174: 2646 | H174: 16
G175: 2696 | H175: 0
B176: ※会社員で概ね年収150万円以上（社会保険加入者）の方向け。
B177: ※生命保険料控除額はCASEによって異なるためデフォルトでは5万円。
B178: ※住民税と所得税控除額が異なる分、住民税額に＋1万円して計算。
B179: ※住宅ローン控除は考慮せず。
B181: =B145 ->  | C181: 年
B182: 配偶者 | D182: ←この色のセルに入力ください
G183: 給与所得控除 | K183: 本人収入 | L183: vlookup関数のための数値
B184: 年収 | C184: =【就労時】年間収入と支出!C98 -> 0 | D184: 万円 | E184: ① | G184: 年収 | H184: 税率 | I184: 速算加減値 | K184: 0 | L184: 2
B185: 扶養配偶者 | G185: 0 | H185: 0.4 | I185: -10 | K185: 1096 | L185: 3
B186: 配偶者の年収 | D186: 万円 | G186: 181 | H186: 0.3 | I186: 8 | K186: 1146 | L186: 4
B187: 16歳以上の子供等(扶養） | D187: 人 | G187: 361 | H187: 0.2 | I187: 44 | K187: 1196 | L187: 5
B188: 19-23歳の子供(扶養） | D188: 人 | G188: 661 | H188: 0.1 | I188: 110
B189: 70歳以上・非同居(扶養) | D189: 人 | G189: 851 | H189: 0 | I189: 195 | K189: 配偶者控除額
B190: 70歳以上・同居(扶養) | D190: 人 | L190: 本人収入
K191: 配偶者収入 | L191: 0 | M191: 1096 | N191: 1146 | O191: 1196
B192: 給与所得控除 | C192: =IF(C184*VLOOKUP(C184,G185:I189,2,TRUE)+VLOOKUP(C184,G185:I189,3,TRUE)<55,55,C184*VLOOKUP(C184,G185:I189,2,TRUE)+VLOOKUP(C184,G185:I189,3,TRUE)) -> 55 | D192: 万円 | K192: 0 | L192: 38 | M192: 26 | N192: 13 | O192: 0
B193: 社会保険料控除(15%) | C193: =C184*15% -> 0 | D193: 万円 | E193: ② | K193: 151 | L193: 36 | M193: 24 | N193: 12 | O193: 0
B194: 基礎控除 | C194: =VLOOKUP(C184,G208:H211,2,TRUE) -> 48 | D194: 万円 | G194: 所得税速算表 | K194: 156 | L194: 31 | M194: 21 | N194: 11 | O194: 0
B195: 配偶者控除 | C195: =IF(C185="あり",VLOOKUP(C186,K192:O201,VLOOKUP(C184,K184:L187,2,TRUE),TRUE),0) -> 0 | D195: 万円 | G195: 課税所得 | H195: 税率 | I195: 速算加減値 | K195: 161 | L195: 26 | M195: 18 | N195: 9 | O195: 0
B196: 他扶養控除 | C196: =C187*38+C188*63+C189*48+C190*58 -> 0 | D196: 万円 | G196: 0 | H196: 0.05 | I196: 0 | K196: 166 | L196: 21 | M196: 14 | N196: 7 | O196: 0
B197: 生命保険料控除 | D197: 万円 | G197: 196 | H197: 0.1 | I197: -9.75 | K197: 175 | L197: 16 | M197: 11 | N197: 6 | O197: 0
B198: ideco控除 | D198: 万円 | G198: 331 | H198: 0.2 | I198: -42.75 | K198: 183 | L198: 11 | M198: 8 | N198: 4 | O198: 0
B199: その他控除 | D199: 万円 | G199: 696 | H199: 0.23 | I199: -63.6 | K199: 190 | L199: 6 | M199: 4 | N199: 2 | O199: 0
B200: 控除額計 | C200: =SUM(C192:C199) -> 103 | D200: 万円 | E200: ③ | G200: 901 | H200: 0.33 | I200: -153.6 | K200: 197 | L200: 3 | M200: 2 | N200: 1 | O200: 0
G201: 1801 | H201: 0.4 | I201: -279.6 | K201: 201 | L201: 0 | M201: 0 | N201: 0 | O201: 0
B202: 前年ふるさと納税額 | D202: 万円 | G202: 4001 | H202: 0.45 | I202: -479.6
B204: 課税所得 | C204: =IF(C184-C200>0,C184-C200,0) -> 0 | D204: 万円 | E204: ①－③
B205: 所得税 | C205: =C204*(VLOOKUP(C204,G196:I202,2,TRUE))+VLOOKUP(C204,G196:I202,3,TRUE) -> 0 | D205: 万円
B206: 住民税 | C206: =IF(C204*10%>0,C204*10%,0)+1-C202+0.2 -> 1.2 | D206: 万円 | G206: 基礎控除
B207: 税合計 | C207: =SUM(C205:C206) -> 1.2 | D207: 万円 | E207: ④ | G207: 年収 | H207: 控除額
B208: 税/年収比 | C208: =C207/C184*100 ->  | D208: ％ | G208: 0 | H208: 48
B209: 手取り額 | C209: =C184-C193-C207 -> -1.2 | D209: 万円 | E209: ①－②－④ | G209: 2596 | H209: 32
... 74 more rows

Sheet 住宅ローン返済表 (hidden)
B2: 借入返済予定表（元利均等返済）
B4: ローン情報 | E4: ▼ 入力項目 ▼ | H4: ◆ 借入額データ | K4: 金額 | M4: 割合 | N4: ◆ 年間返済額データ | Q4: 金額 | S4: ◆ 総返済額データ | U4: 総額 | W4: 割合
B5: 返済開始日 | E5: =不動産!E121 -> 00:00:00 | H5: ①借入金額（毎月返済分） | K5: =K7-K6 -> 0 | M5: =IF(K5="","",K5/K7) ->  | N5: ③毎月返済額 | Q5: =F16 ->  | S5: ⑤元金 | U5: =H15+Q15 -> 0 | W5: =IF(U5="","",U5/U7) -> 
B6: 購入金額 | E6: =不動産!E120*10000 -> 0 | G6: ⇒ | H6: ②借入金額（ボーナス返済分） | K6: =E8*E9*E10 -> 0 | M6: =IF(K6="","",K6/K7) ->  | N6: ④ボーナス時返済額（1回分） | Q6: =O21 ->  | S6: ⑥利息 | U6: =J15+S15 -> 0 | W6: =IF(U6="","",U6/U7) -> 
B7: 頭金 | H7: 合計（①+②） | K7: =E6-E7 -> 0 | M7: =IF(K7="","",K7/K7) ->  | N7: 年間返済額（③*12+④*n） | Q7: =Q5*12+IF(Q6<>"",Q6*E9) ->  | S7: 合計（⑤+⑥） | U7: =U5+U6 -> 0 | W7: =IF(U7="","",U7/U7) -> 
B8: ボーナス予定返済額（1回分） | E8: =不動産!E122*10000 -> 0 | N8: ※「n」・・・ボーナス予定返済回数
B9: ボーナス予定返済回数（n） | E9: =不動産!E123 -> 0 | G9: ⇒ | H9: ボーナス返済回数(n×s) | K9: =IF(E10="","",E10*E9) -> 0
B10: 借入期間（s） | E10: =不動産!E124 -> 0 | G10: ⇒ | H10: 毎月返済回数（s×12ヶ月） | K10: =IF(E10="","",E10*12) -> 0
B11: 金利（年利） | E11: =不動産!E125/100 -> 0 | G11: ⇒ | H11: 月利（金利÷12ヶ月） | K11: =IF(E11="","",E11/12) -> 0
B13: ▼毎月返済予定表 | N13: ▼ボーナス返済予定表
B14: 年数 （年目） | C14: 返済年月 | E14: 返済 回数 （回） | F14: 毎月返済額（円） | H14: 元金（円） | J14: 利息（円） | L14: 借入金残高（円） | N14: 返済 回数 （回） | O14: 毎月返済額（円） | Q14: 元金（円） | S14: 利息（円） | U14: 借入金残高（円） | W14: 年数 （年目）
B15: 合計 | F15: =SUM(F16:G615) -> 0 | H15: =SUM(H16:I615) -> 0 | J15: =SUM(J16:K615) -> 0 | N15: 合計 | O15: =SUM(O16:P615) -> 0 | Q15: =SUM(Q16:R615) -> 0 | S15: =SUM(S16:T615) -> 0
B16: 1 | C16: =E5 -> 00:00:00 | E16: 1 | F16: =IF($E$10*12=E16,H16+J16,IF($E$10*12<E16,"",-ROUNDUP(PMT($E$11/12,$E$10*12,$K$5),0))) ->  | H16: =IF($E$10*12=E16,L15,IF($E$10*12<E16,"",-ROUNDUP(PPMT($E$11/12,E16,$E$10*12,$K$5),0))) ->  | J16: =IF($E$10*12=E16,-ROUNDUP(IPMT($E$11/12,E16,$E$10*12,$K$5),0),IF($E$10*12<E16,"",F16-H16)) ->  | L16: =IF(F16="","",$K$5-H16) ->  | W16: 1
C17: =EDATE(C16,1) -> 1900-01-31 | E17: 2 | F17: =IF($E$10*12=E17,H17+J17,IF($E$10*12<E17,"",-ROUNDUP(PMT($E$11/12,$E$10*12,$K$5),0))) ->  | H17: =IF($E$10*12=E17,L16,IF($E$10*12<E17,"",-ROUNDUP(PPMT($E$11/12,E17,$E$10*12,$K$5),0))) ->  | J17: =IF($E$10*12=E17,-ROUNDUP(IPMT($E$11/12,E17,$E$10*12,$K$5),0),IF($E$10*12<E17,"",F17-H17)) ->  | L17: =IF($E$10*12<E17,"",L16-H17) -> 
C18: =EDATE(C17,1) -> 1900-02-28 | E18: 3 | F18: =IF($E$10*12=E18,H18+J18,IF($E$10*12<E18,"",-ROUNDUP(PMT($E$11/12,$E$10*12,$K$5),0))) ->  | L18: =IF($E$10*12<E18,"",L17-H18) -> 
C19: 1900-03-28 | E19: 4
C20: 1900-04-28 | E20: 5
C21: 1900-05-28 | E21: 6 | J21: =IF($E$10*12=E21,-ROUNDUP(IPMT($E$11/12,E21,$E$10*12,$K$5),0),IF($E$10*12<E21,"",F21-H21)) ->  | N21: =IF(AND($K$6>0,E9>0),1,"") ->  | O21: =IF($E$10*$E$9=N21,Q21+S21,IF(N21<>"",-ROUNDUP(PMT($E$11/$E$9,$E$10*$E$9,$K$6),0),"")) ->  | Q21: =IF(AND($E$10*$E$9=N21,U15=""),U9,IF(AND($E$10*$E$9=N21,U15<>""),U15,IF(N21<>"",-ROUNDUP(PPMT($E$11/$E$9,N21,$E$10*$E$9,$K$6),0),""))) ->  | S21: =IF($E$10*$E$9=N21,ROUNDUP(-IPMT($E$11/$E$9,N21,$E$10*$E$9,$K$6),0),IF(O21<>"",O21-Q21,"")) ->  | U21: =IF(N21<>"",$K$6-Q21,"") -> 
C22: 1900-06-28 | E22: 7
C23: 1900-07-28 | E23: 8
C24: 1900-08-28 | E24: 9
C25: 1900-09-28 | E25: 10
C26: 1900-10-28 | E26: 11
C27: 1900-11-28 | E27: 12 | N27: =IF(AND($E$9=2,N21<>K9),N21+1,"") ->  | O27: =IF($E$10*$E$9=N27,Q27+S27,IF(N27<>"",-ROUNDUP(PMT($E$11/$E$9,$E$10*$E$9,$K$6),0),"")) ->  | Q27: =IF(AND($E$10*$E$9=N27,U21=""),U15,IF(AND($E$10*$E$9=N27,U21<>""),U21,IF(N27<>"",-ROUNDUP(PPMT($E$11/$E$9,N27,$E$10*$E$9,$K$6),0),""))) ->  | S27: =IF($E$10*$E$9=N27,ROUNDUP(-IPMT($E$11/$E$9,N27,$E$10*$E$9,$K$6),0),IF(O27<>"",O27-Q27,"")) ->  | U27: =IF(AND(N27<>"",U21>0),U21-Q27,"") -> 
B28: 2 | C28: 1900-12-28 | E28: 13 | W28: 2
C29: 1901-01-28 | E29: 14
C30: 1901-02-28 | E30: 15
C31: 1901-03-28 | E31: 16
C32: 1901-04-28 | E32: 17
C33: 1901-05-28 | E33: 18 | N33: =IF(AND($E$9=1,N21<>$K$9,N21<>""),N21+1,IF(AND($E$9=2,N27<>$K$9,N27<>""),N27+1,"")) ->  | O33: =IF($E$10*$E$9=N33,Q33+S33,IF(N33<>"",-ROUNDUP(PMT($E$11/$E$9,$E$10*$E$9,$K$6),0),"")) ->  | Q33: =IF(AND($E$10*$E$9=N33,U27=""),U21,IF(AND($E$10*$E$9=N33,U27<>""),U27,IF(N33<>"",-ROUNDUP(PPMT($E$11/$E$9,N33,$E$10*$E$9,$K$6),0),""))) ->  | S33: =IF($E$10*$E$9=N33,ROUNDUP(-IPMT($E$11/$E$9,N33,$E$10*$E$9,$K$6),0),IF(O33<>"",O33-Q33,"")) ->  | U33: =IF(N33<>"",IF(AND($E$9=1,U21>0),U21-Q33,IF(AND($E$9=2,U27>0),U27-Q33,"")),"") -> 
C34: 1901-06-28 | E34: 19
C35: 1901-07-28 | E35: 20
C36: 1901-08-28 | E36: 21
C37: 1901-09-28 | E37: 22
C38: 1901-10-28 | E38: 23
C39: 1901-11-28 | E39: 24 | N39: =IF(AND($E$9=2,N33<>K21),N33+1,"") ->  | O39: =IF($E$10*$E$9=N39,Q39+S39,IF(N39<>"",-ROUNDUP(PMT($E$11/$E$9,$E$10*$E$9,$K$6),0),"")) ->  | Q39: =IF(AND($E$10*$E$9=N39,U33=""),U27,IF(AND($E$10*$E$9=N39,U33<>""),U33,IF(N39<>"",-ROUNDUP(PPMT($E$11/$E$9,N39,$E$10*$E$9,$K$6),0),""))) ->  | S39: =IF($E$10*$E$9=N39,ROUNDUP(-IPMT($E$11/$E$9,N39,$E$10*$E$9,$K$6),0),IF(O39<>"",O39-Q39,"")) ->  | U39: =IF(N39<>"",IF(AND($E$9=1,U27>0),U27-Q39,IF(AND($E$9=2,U33>0),U33-Q39,"")),"") -> 
B40: 3 | C40: 1901-12-28 | E40: 25 | W40: 3
C41: 1902-01-28 | E41: 26
C42: 1902-02-28 | E42: 27
C43: 1902-03-28 | E43: 28
C44: 1902-04-28 | E44: 29
C45: 1902-05-28 | E45: 30 | N45: =IF(AND($E$9=1,N33<>$K$9,N33<>""),N33+1,IF(AND($E$9=2,N39<>$K$9,N39<>""),N39+1,"")) ->  | O45: =IF($E$10*$E$9=N45,Q45+S45,IF(N45<>"",-ROUNDUP(PMT($E$11/$E$9,$E$10*$E$9,$K$6),0),"")) ->  | Q45: =IF(AND($E$10*$E$9=N45,U39=""),U33,IF(AND($E$10*$E$9=N45,U39<>""),U39,IF(N45<>"",-ROUNDUP(PPMT($E$11/$E$9,N45,$E$10*$E$9,$K$6),0),""))) ->  | S45: =IF($E$10*$E$9=N45,ROUNDUP(-IPMT($E$11/$E$9,N45,$E$10*$E$9,$K$6),0),IF(O45<>"",O45-Q45,"")) ->  | U45: =IF(N45<>"",IF(AND($E$9=1,U33>0),U33-Q45,IF(AND($E$9=2,U39>0),U39-Q45,"")),"") -> 
C46: 1902-06-28 | E46: 31
C47: 1902-07-28 | E47: 32
C48: 1902-08-28 | E48: 33
C49: 1902-09-28 | E49: 34
C50: 1902-10-28 | E50: 35
C51: 1902-11-28 | E51: 36 | N51: =IF(AND($E$9=2,N45<>K33),N45+1,"") ->  | O51: =IF($E$10*$E$9=N51,Q51+S51,IF(N51<>"",-ROUNDUP(PMT($E$11/$E$9,$E$10*$E$9,$K$6),0),"")) ->  | Q51: =IF(AND($E$10*$E$9=N51,U45=""),U39,IF(AND($E$10*$E$9=N51,U45<>""),U45,IF(N51<>"",-ROUNDUP(PPMT($E$11/$E$9,N51,$E$10*$E$9,$K$6),0),""))) ->  | S51: =IF($E$10*$E$9=N51,ROUNDUP(-IPMT($E$11/$E$9,N51,$E$10*$E$9,$K$6),0),IF(O51<>"",O51-Q51,"")) ->  | U51: =IF(N51<>"",IF(AND($E$9=1,U39>0),U39-Q51,IF(AND($E$9=2,U45>0),U45-Q51,"")),"") -> 
B52: 4 | C52: 1902-12-28 | E52: 37 | W52: 4
C53: 1903-01-28 | E53: 38
C54: 1903-02-28 | E54: 39
C55: 1903-03-28 | E55: 40
C56: 1903-04-28 | E56: 41
C57: 1903-05-28 | E57: 42 | N57: =IF(AND($E$9=1,N45<>$K$9,N45<>""),N45+1,IF(AND($E$9=2,N51<>$K$9,N51<>""),N51+1,"")) ->  | O57: =IF($E$10*$E$9=N57,Q57+S57,IF(N57<>"",-ROUNDUP(PMT($E$11/$E$9,$E$10*$E$9,$K$6),0),"")) ->  | Q57: =IF(AND($E$10*$E$9=N57,U51=""),U45,IF(AND($E$10*$E$9=N57,U51<>""),U51,IF(N57<>"",-ROUNDUP(PPMT($E$11/$E$9,N57,$E$10*$E$9,$K$6),0),""))) ->  | S57: =IF($E$10*$E$9=N57,ROUNDUP(-IPMT($E$11/$E$9,N57,$E$10*$E$9,$K$6),0),IF(O57<>"",O57-Q57,"")) ->  | U57: =IF(N57<>"",IF(AND($E$9=1,U45>0),U45-Q57,IF(AND($E$9=2,U51>0),U51-Q57,"")),"") -> 
C58: 1903-06-28 | E58: 43
C59: 1903-07-28 | E59: 44
C60: 1903-08-28 | E60: 45
C61: 1903-09-28 | E61: 46
C62: 1903-10-28 | E62: 47
C63: 1903-11-28 | E63: 48 | N63: =IF(AND($E$9=2,N57<>K45),N57+1,"") ->  | O63: =IF($E$10*$E$9=N63,Q63+S63,IF(N63<>"",-ROUNDUP(PMT($E$11/$E$9,$E$10*$E$9,$K$6),0),"")) ->  | Q63: =IF(AND($E$10*$E$9=N63,U57=""),U51,IF(AND($E$10*$E$9=N63,U57<>""),U57,IF(N63<>"",-ROUNDUP(PPMT($E$11/$E$9,N63,$E$10*$E$9,$K$6),0),""))) ->  | S63: =IF($E$10*$E$9=N63,ROUNDUP(-IPMT($E$11/$E$9,N63,$E$10*$E$9,$K$6),0),IF(O63<>"",O63-Q63,"")) ->  | U63: =IF(N63<>"",IF(AND($E$9=1,U51>0),U51-Q63,IF(AND($E$9=2,U57>0),U57-Q63,"")),"") -> 
B64: 5 | C64: 1903-12-28 | E64: 49 | W64: 5
C65: 1904-01-28 | E65: 50
C66: 1904-02-28 | E66: 51
C67: 1904-03-28 | E67: 52
C68: 1904-04-28 | E68: 53
C69: 1904-05-28 | E69: 54 | N69: =IF(AND($E$9=1,N57<>$K$9,N57<>""),N57+1,IF(AND($E$9=2,N63<>$K$9,N63<>""),N63+1,"")) ->  | O69: =IF($E$10*$E$9=N69,Q69+S69,IF(N69<>"",-ROUNDUP(PMT($E$11/$E$9,$E$10*$E$9,$K$6),0),"")) ->  | Q69: =IF(AND($E$10*$E$9=N69,U63=""),U57,IF(AND($E$10*$E$9=N69,U63<>""),U63,IF(N69<>"",-ROUNDUP(PPMT($E$11/$E$9,N69,$E$10*$E$9,$K$6),0),""))) ->  | S69: =IF($E$10*$E$9=N69,ROUNDUP(-IPMT($E$11/$E$9,N69,$E$10*$E$9,$K$6),0),IF(O69<>"",O69-Q69,"")) ->  | U69: =IF(N69<>"",IF(AND($E$9=1,U57>0),U57-Q69,IF(AND($E$9=2,U63>0),U63-Q69,"")),"") -> 
C70: 1904-06-28 | E70: 55
C71: 1904-07-28 | E71: 56
C72: 1904-08-28 | E72: 57
C73: 1904-09-28 | E73: 58
C74: 1904-10-28 | E74: 59
C75: 1904-11-28 | E75: 60 | N75: =IF(AND($E$9=2,N69<>K57),N69+1,"") ->  | O75: =IF($E$10*$E$9=N75,Q75+S75,IF(N75<>"",-ROUNDUP(PMT($E$11/$E$9,$E$10*$E$9,$K$6),0),"")) ->  | Q75: =IF(AND($E$10*$E$9=N75,U69=""),U63,IF(AND($E$10*$E$9=N75,U69<>""),U69,IF(N75<>"",-ROUNDUP(PPMT($E$11/$E$9,N75,$E$10*$E$9,$K$6),0),""))) ->  | S75: =IF($E$10*$E$9=N75,ROUNDUP(-IPMT($E$11/$E$9,N75,$E$10*$E$9,$K$6),0),IF(O75<>"",O75-Q75,"")) ->  | U75: =IF(N75<>"",IF(AND($E$9=1,U63>0),U63-Q75,IF(AND($E$9=2,U69>0),U69-Q75,"")),"") -> 
B76: 6 | C76: 1904-12-28 | E76: 61 | W76: 6
C77: 1905-01-28 | E77: 62
C78: 1905-02-28 | E78: 63
C79: 1905-03-28 | E79: 64
C80: 1905-04-28 | E80: 65
C81: 1905-05-28 | E81: 66 | H81: =IF($E$10*12=E81,L80,IF($E$10*12<E81,"",-ROUNDUP(PPMT($E$11/12,E81,$E$10*12,$K$5),0))) ->  | J81: =IF($E$10*12=E81,-ROUNDUP(IPMT($E$11/12,E81,$E$10*12,$K$5),0),IF($E$10*12<E81,"",F81-H81)) ->  | N81: =IF(AND($E$9=1,N69<>$K$9,N69<>""),N69+1,IF(AND($E$9=2,N75<>$K$9,N75<>""),N75+1,"")) ->  | O81: =IF($E$10*$E$9=N81,Q81+S81,IF(N81<>"",-ROUNDUP(PMT($E$11/$E$9,$E$10*$E$9,$K$6),0),"")) ->  | Q81: =IF(AND($E$10*$E$9=N81,U75=""),U69,IF(AND($E$10*$E$9=N81,U75<>""),U75,IF(N81<>"",-ROUNDUP(PPMT($E$11/$E$9,N81,$E$10*$E$9,$K$6),0),""))) ->  | S81: =IF($E$10*$E$9=N81,ROUNDUP(-IPMT($E$11/$E$9,N81,$E$10*$E$9,$K$6),0),IF(O81<>"",O81-Q81,"")) ->  | U81: =IF(N81<>"",IF(AND($E$9=1,U69>0),U69-Q81,IF(AND($E$9=2,U75>0),U75-Q81,"")),"") -> 
C82: =EDATE(C81,1) -> 1905-06-28 | E82: 67 | F82: =IF($E$10*12=E82,H82+J82,IF($E$10*12<E82,"",-ROUNDUP(PMT($E$11/12,$E$10*12,$K$5),0))) ->  | L82: =IF($E$10*12<E82,"",L81-H82) -> 
C83: 1905-07-28 | E83: 68
C84: 1905-08-28 | E84: 69
C85: 1905-09-28 | E85: 70
C86: 1905-10-28 | E86: 71
C87: 1905-11-28 | E87: 72 | N87: =IF(AND($E$9=2,N81<>K69),N81+1,"") ->  | O87: =IF($E$10*$E$9=N87,Q87+S87,IF(N87<>"",-ROUNDUP(PMT($E$11/$E$9,$E$10*$E$9,$K$6),0),"")) ->  | Q87: =IF(AND($E$10*$E$9=N87,U81=""),U75,IF(AND($E$10*$E$9=N87,U81<>""),U81,IF(N87<>"",-ROUNDUP(PPMT($E$11/$E$9,N87,$E$10*$E$9,$K$6),0),""))) ->  | S87: =IF($E$10*$E$9=N87,ROUNDUP(-IPMT($E$11/$E$9,N87,$E$10*$E$9,$K$6),0),IF(O87<>"",O87-Q87,"")) ->  | U87: =IF(N87<>"",IF(AND($E$9=1,U75>0),U75-Q87,IF(AND($E$9=2,U81>0),U81-Q87,"")),"") -> 
B88: 7 | C88: 1905-12-28 | E88: 73 | W88: 7
C89: 1906-01-28 | E89: 74
C90: 1906-02-28 | E90: 75
C91: 1906-03-28 | E91: 76
C92: 1906-04-28 | E92: 77
C93: 1906-05-28 | E93: 78 | N93: =IF(AND($E$9=1,N81<>$K$9,N81<>""),N81+1,IF(AND($E$9=2,N87<>$K$9,N87<>""),N87+1,"")) ->  | O93: =IF($E$10*$E$9=N93,Q93+S93,IF(N93<>"",-ROUNDUP(PMT($E$11/$E$9,$E$10*$E$9,$K$6),0),"")) ->  | Q93: =IF(AND($E$10*$E$9=N93,U87=""),U81,IF(AND($E$10*$E$9=N93,U87<>""),U87,IF(N93<>"",-ROUNDUP(PPMT($E$11/$E$9,N93,$E$10*$E$9,$K$6),0),""))) ->  | S93: =IF($E$10*$E$9=N93,ROUNDUP(-IPMT($E$11/$E$9,N93,$E$10*$E$9,$K$6),0),IF(O93<>"",O93-Q93,"")) ->  | U93: =IF(N93<>"",IF(AND($E$9=1,U81>0),U81-Q93,IF(AND($E$9=2,U87>0),U87-Q93,"")),"") -> 
C94: 1906-06-28 | E94: 79
C95: 1906-07-28 | E95: 80
C96: 1906-08-28 | E96: 81
C97: 1906-09-28 | E97: 82
C98: 1906-10-28 | E98: 83
C99: 1906-11-28 | E99: 84 | N99: =IF(AND($E$9=2,N93<>K81),N93+1,"") ->  | O99: =IF($E$10*$E$9=N99,Q99+S99,IF(N99<>"",-ROUNDUP(PMT($E$11/$E$9,$E$10*$E$9,$K$6),0),"")) ->  | Q99: =IF(AND($E$10*$E$9=N99,U93=""),U87,IF(AND($E$10*$E$9=N99,U93<>""),U93,IF(N99<>"",-ROUNDUP(PPMT($E$11/$E$9,N99,$E$10*$E$9,$K$6),0),""))) ->  | S99: =IF($E$10*$E$9=N99,ROUNDUP(-IPMT($E$11/$E$9,N99,$E$10*$E$9,$K$6),0),IF(O99<>"",O99-Q99,"")) ->  | U99: =IF(N99<>"",IF(AND($E$9=1,U87>0),U87-Q99,IF(AND($E$9=2,U93>0),U93-Q99,"")),"") -> 
B100: 8 | C100: 1906-12-28 | E100: 85 | W100: 8
C101: 1907-01-28 | E101: 86
C102: 1907-02-28 | E102: 87
C103: 1907-03-28 | E103: 88
C104: 1907-04-28 | E104: 89
C105: 1907-05-28 | E105: 90 | N105: =IF(AND($E$9=1,N93<>$K$9,N93<>""),N93+1,IF(AND($E$9=2,N99<>$K$9,N99<>""),N99+1,"")) ->  | O105: =IF($E$10*$E$9=N105,Q105+S105,IF(N105<>"",-ROUNDUP(PMT($E$11/$E$9,$E$10*$E$9,$K$6),0),"")) ->  | Q105: =IF(AND($E$10*$E$9=N105,U99=""),U93,IF(AND($E$10*$E$9=N105,U99<>""),U99,IF(N105<>"",-ROUNDUP(PPMT($E$11/$E$9,N105,$E$10*$E$9,$K$6),0),""))) ->  | S105: =IF($E$10*$E$9=N105,ROUNDUP(-IPMT($E$11/$E$9,N105,$E$10*$E$9,$K$6),0),IF(O105<>"",O105-Q105,"")) ->  | U105: =IF(N105<>"",IF(AND($E$9=1,U93>0),U93-Q105,IF(AND($E$9=2,U99>0),U99-Q105,"")),"") -> 
C106: 1907-06-28 | E106: 91
C107: 1907-07-28 | E107: 92
C108: 1907-08-28 | E108: 93
C109: 1907-09-28 | E109: 94
C110: 1907-10-28 | E110: 95
C111: 1907-11-28 | E111: 96 | N111: =IF(AND($E$9=2,N105<>K93),N105+1,"") ->  | O111: =IF($E$10*$E$9=N111,Q111+S111,IF(N111<>"",-ROUNDUP(PMT($E$11/$E$9,$E$10*$E$9,$K$6),0),"")) ->  | Q111: =IF(AND($E$10*$E$9=N111,U105=""),U99,IF(AND($E$10*$E$9=N111,U105<>""),U105,IF(N111<>"",-ROUNDUP(PPMT($E$11/$E$9,N111,$E$10*$E$9,$K$6),0),""))) ->  | S111: =IF($E$10*$E$9=N111,ROUNDUP(-IPMT($E$11/$E$9,N111,$E$10*$E$9,$K$6),0),IF(O111<>"",O111-Q111,"")) ->  | U111: =IF(N111<>"",IF(AND($E$9=1,U99>0),U99-Q111,IF(AND($E$9=2,U105>0),U105-Q111,"")),"") -> 
B112: 9 | C112: 1907-12-28 | E112: 97 | W112: 9
C113: 1908-01-28 | E113: 98
C114: 1908-02-28 | E114: 99
C115: 1908-03-28 | E115: 100
C116: 1908-04-28 | E116: 101
C117: 1908-05-28 | E117: 102 | N117: =IF(AND($E$9=1,N105<>$K$9,N105<>""),N105+1,IF(AND($E$9=2,N111<>$K$9,N111<>""),N111+1,"")) ->  | O117: =IF($E$10*$E$9=N117,Q117+S117,IF(N117<>"",-ROUNDUP(PMT($E$11/$E$9,$E$10*$E$9,$K$6),0),"")) ->  | Q117: =IF(AND($E$10*$E$9=N117,U111=""),U105,IF(AND($E$10*$E$9=N117,U111<>""),U111,IF(N117<>"",-ROUNDUP(PPMT($E$11/$E$9,N117,$E$10*$E$9,$K$6),0),""))) ->  | S117: =IF($E$10*$E$9=N117,ROUNDUP(-IPMT($E$11/$E$9,N117,$E$10*$E$9,$K$6),0),IF(O117<>"",O117-Q117,"")) ->  | U117: =IF(N117<>"",IF(AND($E$9=1,U105>0),U105-Q117,IF(AND($E$9=2,U111>0),U111-Q117,"")),"") -> 
C118: 1908-06-28 | E118: 103
C119: 1908-07-28 | E119: 104
C120: 1908-08-28 | E120: 105
C121: 1908-09-28 | E121: 106
C122: 1908-10-28 | E122: 107
C123: 1908-11-28 | E123: 108 | N123: =IF(AND($E$9=2,N117<>K105),N117+1,"") ->  | O123: =IF($E$10*$E$9=N123,Q123+S123,IF(N123<>"",-ROUNDUP(PMT($E$11/$E$9,$E$10*$E$9,$K$6),0),"")) ->  | Q123: =IF(AND($E$10*$E$9=N123,U117=""),U111,IF(AND($E$10*$E$9=N123,U117<>""),U117,IF(N123<>"",-ROUNDUP(PPMT($E$11/$E$9,N123,$E$10*$E$9,$K$6),0),""))) ->  | S123: =IF($E$10*$E$9=N123,ROUNDUP(-IPMT($E$11/$E$9,N123,$E$10*$E$9,$K$6),0),IF(O123<>"",O123-Q123,"")) ->  | U123: =IF(N123<>"",IF(AND($E$9=1,U111>0),U111-Q123,IF(AND($E$9=2,U117>0),U117-Q123,"")),"") -> 
B124: 10 | C124: 1908-12-28 | E124: 109 | W124: 10
C125: 1909-01-28 | E125: 110
C126: 1909-02-28 | E126: 111
C127: 1909-03-28 | E127: 112
C128: 1909-04-28 | E128: 113
C129: 1909-05-28 | E129: 114 | N129: =IF(AND($E$9=1,N117<>$K$9,N117<>""),N117+1,IF(AND($E$9=2,N123<>$K$9,N123<>""),N123+1,"")) ->  | O129: =IF($E$10*$E$9=N129,Q129+S129,IF(N129<>"",-ROUNDUP(PMT($E$11/$E$9,$E$10*$E$9,$K$6),0),"")) ->  | Q129: =IF(AND($E$10*$E$9=N129,U123=""),U117,IF(AND($E$10*$E$9=N129,U123<>""),U123,IF(N129<>"",-ROUNDUP(PPMT($E$11/$E$9,N129,$E$10*$E$9,$K$6),0),""))) ->  | S129: =IF($E$10*$E$9=N129,ROUNDUP(-IPMT($E$11/$E$9,N129,$E$10*$E$9,$K$6),0),IF(O129<>"",O129-Q129,"")) ->  | U129: =IF(N129<>"",IF(AND($E$9=1,U117>0),U117-Q129,IF(AND($E$9=2,U123>0),U123-Q129,"")),"") -> 
C130: 1909-06-28 | E130: 115
C131: 1909-07-28 | E131: 116
C132: 1909-08-28 | E132: 117
C133: 1909-09-28 | E133: 118
C134: 1909-10-28 | E134: 119
C135: 1909-11-28 | E135: 120 | N135: =IF(AND($E$9=2,N129<>K117),N129+1,"") ->  | O135: =IF($E$10*$E$9=N135,Q135+S135,IF(N135<>"",-ROUNDUP(PMT($E$11/$E$9,$E$10*$E$9,$K$6),0),"")) ->  | Q135: =IF(AND($E$10*$E$9=N135,U129=""),U123,IF(AND($E$10*$E$9=N135,U129<>""),U129,IF(N135<>"",-ROUNDUP(PPMT($E$11/$E$9,N135,$E$10*$E$9,$K$6),0),""))) ->  | S135: =IF($E$10*$E$9=N135,ROUNDUP(-IPMT($E$11/$E$9,N135,$E$10*$E$9,$K$6),0),IF(O135<>"",O135-Q135,"")) ->  | U135: =IF(N135<>"",IF(AND($E$9=1,U123>0),U123-Q135,IF(AND($E$9=2,U129>0),U129-Q135,"")),"") -> 
B136: 11 | C136: 1909-12-28 | E136: 121 | W136: 11
C137: 1910-01-28 | E137: 122
C138: 1910-02-28 | E138: 123
C139: 1910-03-28 | E139: 124
C140: 1910-04-28 | E140: 125
C141: 1910-05-28 | E141: 126 | N141: =IF(AND($E$9=1,N129<>$K$9,N129<>""),N129+1,IF(AND($E$9=2,N135<>$K$9,N135<>""),N135+1,"")) ->  | O141: =IF($E$10*$E$9=N141,Q141+S141,IF(N141<>"",-ROUNDUP(PMT($E$11/$E$9,$E$10*$E$9,$K$6),0),"")) ->  | Q141: =IF(AND($E$10*$E$9=N141,U135=""),U129,IF(AND($E$10*$E$9=N141,U135<>""),U135,IF(N141<>"",-ROUNDUP(PPMT($E$11/$E$9,N141,$E$10*$E$9,$K$6),0),""))) ->  | S141: =IF($E$10*$E$9=N141,ROUNDUP(-IPMT($E$11/$E$9,N141,$E$10*$E$9,$K$6),0),IF(O141<>"",O141-Q141,"")) ->  | U141: =IF(N141<>"",IF(AND($E$9=1,U129>0),U129-Q141,IF(AND($E$9=2,U135>0),U135-Q141,"")),"") -> 
C142: 1910-06-28 | E142: 127
C143: 1910-07-28 | E143: 128
C144: 1910-08-28 | E144: 129
C145: 1910-09-28 | E145: 130 | H145: =IF($E$10*12=E145,L144,IF($E$10*12<E145,"",-ROUNDUP(PPMT($E$11/12,E145,$E$10*12,$K$5),0))) ->  | J145: =IF($E$10*12=E145,-ROUNDUP(IPMT($E$11/12,E145,$E$10*12,$K$5),0),IF($E$10*12<E145,"",F145-H145)) -> 
C146: =EDATE(C145,1) -> 1910-10-28 | E146: 131 | F146: =IF($E$10*12=E146,H146+J146,IF($E$10*12<E146,"",-ROUNDUP(PMT($E$11/12,$E$10*12,$K$5),0))) ->  | L146: =IF($E$10*12<E146,"",L145-H146) -> 
C147: 1910-11-28 | E147: 132 | N147: =IF(AND($E$9=2,N141<>K129),N141+1,"") ->  | O147: =IF($E$10*$E$9=N147,Q147+S147,IF(N147<>"",-ROUNDUP(PMT($E$11/$E$9,$E$10*$E$9,$K$6),0),"")) ->  | Q147: =IF(AND($E$10*$E$9=N147,U141=""),U135,IF(AND($E$10*$E$9=N147,U141<>""),U141,IF(N147<>"",-ROUNDUP(PPMT($E$11/$E$9,N147,$E$10*$E$9,$K$6),0),""))) ->  | S147: =IF($E$10*$E$9=N147,ROUNDUP(-IPMT($E$11/$E$9,N147,$E$10*$E$9,$K$6),0),IF(O147<>"",O147-Q147,"")) ->  | U147: =IF(N147<>"",IF(AND($E$9=1,U135>0),U135-Q147,IF(AND($E$9=2,U141>0),U141-Q147,"")),"") -> 
B148: 12 | C148: 1910-12-28 | E148: 133 | W148: 12
C149: 1911-01-28 | E149: 134
C150: 1911-02-28 | E150: 135
C151: 1911-03-28 | E151: 136
C152: 1911-04-28 | E152: 137
C153: 1911-05-28 | E153: 138 | N153: =IF(AND($E$9=1,N141<>$K$9,N141<>""),N141+1,IF(AND($E$9=2,N147<>$K$9,N147<>""),N147+1,"")) ->  | O153: =IF($E$10*$E$9=N153,Q153+S153,IF(N153<>"",-ROUNDUP(PMT($E$11/$E$9,$E$10*$E$9,$K$6),0),"")) ->  | Q153: =IF(AND($E$10*$E$9=N153,U147=""),U141,IF(AND($E$10*$E$9=N153,U147<>""),U147,IF(N153<>"",-ROUNDUP(PPMT($E$11/$E$9,N153,$E$10*$E$9,$K$6),0),""))) ->  | S153: =IF($E$10*$E$9=N153,ROUNDUP(-IPMT($E$11/$E$9,N153,$E$10*$E$9,$K$6),0),IF(O153<>"",O153-Q153,"")) ->  | U153: =IF(N153<>"",IF(AND($E$9=1,U141>0),U141-Q153,IF(AND($E$9=2,U147>0),U147-Q153,"")),"") -> 
C154: 1911-06-28 | E154: 139
C155: 1911-07-28 | E155: 140
C156: 1911-08-28 | E156: 141
C157: 1911-09-28 | E157: 142
C158: 1911-10-28 | E158: 143
C159: 1911-11-28 | E159: 144 | N159: =IF(AND($E$9=2,N153<>K141),N153+1,"") ->  | O159: =IF($E$10*$E$9=N159,Q159+S159,IF(N159<>"",-ROUNDUP(PMT($E$11/$E$9,$E$10*$E$9,$K$6),0),"")) ->  | Q159: =IF(AND($E$10*$E$9=N159,U153=""),U147,IF(AND($E$10*$E$9=N159,U153<>""),U153,IF(N159<>"",-ROUNDUP(PPMT($E$11/$E$9,N159,$E$10*$E$9,$K$6),0),""))) ->  | S159: =IF($E$10*$E$9=N159,ROUNDUP(-IPMT($E$11/$E$9,N159,$E$10*$E$9,$K$6),0),IF(O159<>"",O159-Q159,"")) ->  | U159: =IF(N159<>"",IF(AND($E$9=1,U147>0),U147-Q159,IF(AND($E$9=2,U153>0),U153-Q159,"")),"") -> 
B160: 13 | C160: 1911-12-28 | E160: 145 | W160: 13
C161: 1912-01-28 | E161: 146
C162: 1912-02-28 | E162: 147
C163: 1912-03-28 | E163: 148
C164: 1912-04-28 | E164: 149
C165: 1912-05-28 | E165: 150 | N165: =IF(AND($E$9=1,N153<>$K$9,N153<>""),N153+1,IF(AND($E$9=2,N159<>$K$9,N159<>""),N159+1,"")) ->  | O165: =IF($E$10*$E$9=N165,Q165+S165,IF(N165<>"",-ROUNDUP(PMT($E$11/$E$9,$E$10*$E$9,$K$6),0),"")) ->  | Q165: =IF(AND($E$10*$E$9=N165,U159=""),U153,IF(AND($E$10*$E$9=N165,U159<>""),U159,IF(N165<>"",-ROUNDUP(PPMT($E$11/$E$9,N165,$E$10*$E$9,$K$6),0),""))) ->  | S165: =IF($E$10*$E$9=N165,ROUNDUP(-IPMT($E$11/$E$9,N165,$E$10*$E$9,$K$6),0),IF(O165<>"",O165-Q165,"")) ->  | U165: =IF(N165<>"",IF(AND($E$9=1,U153>0),U153-Q165,IF(AND($E$9=2,U159>0),U159-Q165,"")),"") -> 
C166: 1912-06-28 | E166: 151
C167: 1912-07-28 | E167: 152
C168: 1912-08-28 | E168: 153
C169: 1912-09-28 | E169: 154
C170: 1912-10-28 | E170: 155
C171: 1912-11-28 | E171: 156 | N171: =IF(AND($E$9=2,N165<>K153),N165+1,"") ->  | O171: =IF($E$10*$E$9=N171,Q171+S171,IF(N171<>"",-ROUNDUP(PMT($E$11/$E$9,$E$10*$E$9,$K$6),0),"")) ->  | Q171: =IF(AND($E$10*$E$9=N171,U165=""),U159,IF(AND($E$10*$E$9=N171,U165<>""),U165,IF(N171<>"",-ROUNDUP(PPMT($E$11/$E$9,N171,$E$10*$E$9,$K$6),0),""))) ->  | S171: =IF($E$10*$E$9=N171,ROUNDUP(-IPMT($E$11/$E$9,N171,$E$10*$E$9,$K$6),0),IF(O171<>"",O171-Q171,"")) ->  | U171: =IF(N171<>"",IF(AND($E$9=1,U159>0),U159-Q171,IF(AND($E$9=2,U165>0),U165-Q171,"")),"") -> 
B172: 14 | C172: 1912-12-28 | E172: 157 | W172: 14
C173: 1913-01-28 | E173: 158
C174: 1913-02-28 | E174: 159
C175: 1913-03-28 | E175: 160
C176: 1913-04-28 | E176: 161
C177: 1913-05-28 | E177: 162 | N177: =IF(AND($E$9=1,N165<>$K$9,N165<>""),N165+1,IF(AND($E$9=2,N171<>$K$9,N171<>""),N171+1,"")) ->  | O177: =IF($E$10*$E$9=N177,Q177+S177,IF(N177<>"",-ROUNDUP(PMT($E$11/$E$9,$E$10*$E$9,$K$6),0),"")) ->  | Q177: =IF(AND($E$10*$E$9=N177,U171=""),U165,IF(AND($E$10*$E$9=N177,U171<>""),U171,IF(N177<>"",-ROUNDUP(PPMT($E$11/$E$9,N177,$E$10*$E$9,$K$6),0),""))) ->  | S177: =IF($E$10*$E$9=N177,ROUNDUP(-IPMT($E$11/$E$9,N177,$E$10*$E$9,$K$6),0),IF(O177<>"",O177-Q177,"")) ->  | U177: =IF(N177<>"",IF(AND($E$9=1,U165>0),U165-Q177,IF(AND($E$9=2,U171>0),U171-Q177,"")),"") -> 
C178: 1913-06-28 | E178: 163
C179: 1913-07-28 | E179: 164
C180: 1913-08-28 | E180: 165
C181: 1913-09-28 | E181: 166
C182: 1913-10-28 | E182: 167
C183: 1913-11-28 | E183: 168 | N183: =IF(AND($E$9=2,N177<>K165),N177+1,"") ->  | O183: =IF($E$10*$E$9=N183,Q183+S183,IF(N183<>"",-ROUNDUP(PMT($E$11/$E$9,$E$10*$E$9,$K$6),0),"")) ->  | Q183: =IF(AND($E$10*$E$9=N183,U177=""),U171,IF(AND($E$10*$E$9=N183,U177<>""),U177,IF(N183<>"",-ROUNDUP(PPMT($E$11/$E$9,N183,$E$10*$E$9,$K$6),0),""))) ->  | S183: =IF($E$10*$E$9=N183,ROUNDUP(-IPMT($E$11/$E$9,N183,$E$10*$E$9,$K$6),0),IF(O183<>"",O183-Q183,"")) ->  | U183: =IF(N183<>"",IF(AND($E$9=1,U171>0),U171-Q183,IF(AND($E$9=2,U177>0),U177-Q183,"")),"") -> 
B184: 15 | C184: 1913-12-28 | E184: 169 | W184: 15
C185: 1914-01-28 | E185: 170
C186: 1914-02-28 | E186: 171
C187: 1914-03-28 | E187: 172
C188: 1914-04-28 | E188: 173
C189: 1914-05-28 | E189: 174 | N189: =IF(AND($E$9=1,N177<>$K$9,N177<>""),N177+1,IF(AND($E$9=2,N183<>$K$9,N183<>""),N183+1,"")) ->  | O189: =IF($E$10*$E$9=N189,Q189+S189,IF(N189<>"",-ROUNDUP(PMT($E$11/$E$9,$E$10*$E$9,$K$6),0),"")) ->  | Q189: =IF(AND($E$10*$E$9=N189,U183=""),U177,IF(AND($E$10*$E$9=N189,U183<>""),U183,IF(N189<>"",-ROUNDUP(PPMT($E$11/$E$9,N189,$E$10*$E$9,$K$6),0),""))) ->  | S189: =IF($E$10*$E$9=N189,ROUNDUP(-IPMT($E$11/$E$9,N189,$E$10*$E$9,$K$6),0),IF(O189<>"",O189-Q189,"")) ->  | U189: =IF(N189<>"",IF(AND($E$9=1,U177>0),U177-Q189,IF(AND($E$9=2,U183>0),U183-Q189,"")),"") -> 
C190: 1914-06-28 | E190: 175
C191: 1914-07-28 | E191: 176
C192: 1914-08-28 | E192: 177
C193: 1914-09-28 | E193: 178
C194: 1914-10-28 | E194: 179
C195: 1914-11-28 | E195: 180 | N195: =IF(AND($E$9=2,N189<>K177),N189+1,"") ->  | O195: =IF($E$10*$E$9=N195,Q195+S195,IF(N195<>"",-ROUNDUP(PMT($E$11/$E$9,$E$10*$E$9,$K$6),0),"")) ->  | Q195: =IF(AND($E$10*$E$9=N195,U189=""),U183,IF(AND($E$10*$E$9=N195,U189<>""),U189,IF(N195<>"",-ROUNDUP(PPMT($E$11/$E$9,N195,$E$10*$E$9,$K$6),0),""))) ->  | S195: =IF($E$10*$E$9=N195,ROUNDUP(-IPMT($E$11/$E$9,N195,$E$10*$E$9,$K$6),0),IF(O195<>"",O195-Q195,"")) ->  | U195: =IF(N195<>"",IF(AND($E$9=1,U183>0),U183-Q195,IF(AND($E$9=2,U189>0),U189-Q195,"")),"") -> 
B196: 16 | C196: 1914-12-28 | E196: 181 | W196: 16
C197: 1915-01-28 | E197: 182
C198: 1915-02-28 | E198: 183
C199: 1915-03-28 | E199: 184
C200: 1915-04-28 | E200: 185
C201: 1915-05-28 | E201: 186 | N201: =IF(AND($E$9=1,N189<>$K$9,N189<>""),N189+1,IF(AND($E$9=2,N195<>$K$9,N195<>""),N195+1,"")) ->  | O201: =IF($E$10*$E$9=N201,Q201+S201,IF(N201<>"",-ROUNDUP(PMT($E$11/$E$9,$E$10*$E$9,$K$6),0),"")) ->  | Q201: =IF(AND($E$10*$E$9=N201,U195=""),U189,IF(AND($E$10*$E$9=N201,U195<>""),U195,IF(N201<>"",-ROUNDUP(PPMT($E$11/$E$9,N201,$E$10*$E$9,$K$6),0),""))) ->  | S201: =IF($E$10*$E$9=N201,ROUNDUP(-IPMT($E$11/$E$9,N201,$E$10*$E$9,$K$6),0),IF(O201<>"",O201-Q201,"")) ->  | U201: =IF(N201<>"",IF(AND($E$9=1,U189>0),U189-Q201,IF(AND($E$9=2,U195>0),U195-Q201,"")),"") -> 
C202: 1915-06-28 | E202: 187
C203: 1915-07-28 | E203: 188
... 412 more rows

Sheet 【退職後】資金シミュレーション
A1: 住まいの終活『すましゅう』
B2: 年金受給開始年を貯蓄の受取年と仮定して、
B3: 負債・貯蓄がどのくらいになるかシミュレーションしてみましょう。
B4: 年金受給開始 | D4: =【退職後】年間収入と支出!$H$11 -> 0 | E4: 歳 | F4: 記入日から | H4: =$D$4-パーソナル情報!$F$5 ->  | I4: 年後
B5: =YEAR(パーソナル情報!$H$1)+$H$4 ->  | D5: 年
F7: =B5-YEAR(不動産!E121) ->  | H7: =F7*12 -> 
B8: 年金受給開始時の住宅ローン残高シミュレーション | K8: ●ローン残高計算
D9: 受給開始年の予測額 | F9: 繰上げ返済予定額 | H9: ローン残高 | K9: ローン返済（ボーナス併用） - 高精度計算サイト
B10: 住宅ローン残高 | D10: =VLOOKUP(H7,住宅ローン返済表!E16:M615,8,TRUE)/10000 ->  | E10: 万円 | G10: 万円 | H10: =D10-F10 ->  | I10: 万円 | K10: ※ご使用は自己責任でお願いします
H11: ※簡易的な計算による
B12: 退職までの積立額シミュレーション
B13: 積立金の現金化年齢 | E13: 歳 | F13: 記入日から | H13: =D13-パーソナル情報!$F$5 ->  | I13: 年後
B14: =YEAR(パーソナル情報!$H$1)+H13 ->  | D14: 年
C15: 月額 | E15: 年利 | F15: 運用年数 | H15: 予測額 | K15: ●銀行預金金利検索
B16: 積立貯金 | D16: 万円 | E16: 0.001 | F16: =$H$13 ->  | G16: 年 | H16: =FV(E16/12,F16*12,-C16) ->  | I16: 万円 | K16: 普通預金 定期預金 金利一覧（メガバンク･ネット銀行等）
B17: 積立投資① | D17: 万円 | E17: 0.03 | F17: =$H$13 ->  | G17: 年 | H17: =FV(E17/12,F17*12,-C17) ->  | I17: 万円 | K17: ※ご使用は自己責任でお願いします
B18: 積立投資② | D18: 万円 | E18: 0.03 | G18: 年 | H18: =FV(E18/12,F18*12,-C18) ->  | I18: 万円
B19: 積立投資③ | D19: 万円 | E19: 0.03 | G19: 年 | H19: =FV(E19/12,F19*12,-C19) ->  | I19: 万円
B20: 積立投資④ | D20: 万円 | E20: 0.03 | G20: 年 | H20: =FV(E20/12,F20*12,-C20) ->  | I20: 万円
B22: 合計 | C22: =SUM(C16:C20) -> 0 | D22: 万円 | G22: 合計 | H22: =ROUNDDOWN(H16+H17+H18+H19+H20,0) ->  | I22: 万円
H23: ※年金受給時に現金化
B24: 貯蓄・運用 可能額
C25: =【就労時】年間収入と支出!U44 -> 0 | D25: 万円
B26: 差額 | C26: =C25-+C22 -> 0 | D26: 万円
B28: 退職金シミュレーション | E28: 受取年齢 | G28: 受取年 | K28: ●退職金シミュレーション
B29: 退職金(本人） | D29: 万円 | F29: 歳 | G29: =YEAR(パーソナル情報!$H$1)+(E29-パーソナル情報!$F$5) ->  | H29: 年 | K29: 退職金計算ツール - 勤続年数と退職金の簡単計算 - 計算ツール
B30: 退職金(配偶者） | D30: 万円 | G30: =YEAR(パーソナル情報!$H$1)+(E30-パーソナル情報!H13) ->  | H30: 年 | K30: ※ご使用は自己責任でお願いします
B31: 企業年金 | C31: =年金!F37 -> 0 | D31: 万円 | K31: ●退職金支給実態
B32: 個人年金 | C32: =年金!H76 -> 0 | D32: 万円 | G32: 合計 | H32: =C32+C30+C31+C29 -> 0 | I32: 万円 | K32: 退職給付（一時金・年金）の支給実態｜厚生労働省
B34: 死後に入る費用
B35: 生命保険 | C35: =資産!F5 -> 0 | D35: 万円
B37: 死後整理にかかる費用（残しておく費用）
B38: 葬儀 | D38: 万円
B39: お墓購入 | D39: 万円
B40: 遺品整理 | D40: 万円 | G40: 合計 | H40: =C40+C38+C39 -> 0 | I40: 万円

Sheet キャッシュフロー表
A1: 住まいの終活『すましゅう』
A3: キャッシュフロー表
A4: キャッシュフロー表を作成してみよう
A6: 家族ごとのライフイベントや収入・支出を書き出して
A7: 今後の家計収支をチェックしましょう。
A9: 年 | D9: =YEAR(パーソナル情報!H1) ->  | E9: =+D9+1 ->  | F9: =+E9+1 ->  | G9: =+F9+1 ->  | Y9: =+X9+1 ->  | Z9: =+Y9+1 ->  | AA9: =+Z9+1 ->  | AB9: =+AA9+1 ->  | AC9: =+AB9+1 ->  | AD9: =+AC9+1 ->  | AE9: =+AD9+1 ->  | AF9: =+AE9+1 ->  | AG9: =+AF9+1 ->  | AH9: =+AG9+1 ->  | AI9: =+AH9+1 ->  | AJ9: =+AI9+1 ->  | AK9: =+AJ9+1 ->  | AL9: =+AK9+1 ->  | AM9: =+AL9+1 ->  | AN9: =+AM9+1 ->  | AO9: =+AN9+1 ->  | AP9: =+AO9+1 ->  | AQ9: =+AP9+1 ->  | AR9: =+AQ9+1 ->  | AS9: =+AR9+1 ->  | AT9: =+AS9+1 ->  | AU9: =+AT9+1 ->  | AV9: =+AU9+1 ->  | AW9: =+AV9+1 ->  | AX9: =+AW9+1 ->  | AY9: =+AX9+1 ->  | AZ9: =+AY9+1 ->  | BA9: =+AZ9+1 ->  | BB9: =+BA9+1 ->  | BC9: =+BB9+1 ->  | BD9: =+BC9+1 ->  | BE9: =+BD9+1 ->  | BF9: =+BE9+1 ->  | BG9: =+BF9+1 ->  | BH9: =+BG9+1 ->  | BI9: =+BH9+1 ->  | BJ9: =+BI9+1 ->  | BK9: =+BJ9+1 ->  | BL9: =+BK9+1 ->  | BM9: =+BL9+1 ->  | BN9: =+BM9+1 ->  | BO9: =+BN9+1 ->  | BP9: =+BO9+1 ->  | BQ9: =+BP9+1 ->  | BR9: =+BQ9+1 ->  | BS9: =+BR9+1 ->  | BT9: =+BS9+1 ->  | BU9: =+BT9+1 ->  | BV9: =+BU9+1 ->  | BW9: =+BV9+1 -> 
A10: 経過年数 | D10: 現在 | E10: 1年後 | F10: 2年後 | G10: 3年後 | H10: 4年後 | I10: 5年後 | J10: 6年後 | K10: 7年後 | L10: 8年後 | M10: 9年後 | N10: 10年後 | O10: 11年後 | P10: 12年後 | Q10: 13年後 | R10: 14年後 | S10: 15年後 | T10: 16年後 | U10: 17年後 | V10: 18年後 | W10: 19年後 | X10: 20年後 | Y10: 21年後 | Z10: 22年後 | AA10: 23年後 | AB10: 24年後 | AC10: 25年後 | AD10: 26年後 | AE10: 27年後 | AF10: 28年後 | AG10: 29年後 | AH10: 30年後 | AI10: 31年後 | AJ10: 32年後 | AK10: 33年後 | AL10: 34年後 | AM10: 35年後 | AN10: 36年後 | AO10: 37年後 | AP10: 38年後 | AQ10: 39年後 | AR10: 40年後 | AS10: 41年後 | AT10: 42年後 | AU10: 43年後 | AV10: 44年後 | AW10: 45年後 | AX10: 46年後 | AY10: 47年後 | AZ10: 48年後 | BA10: 49年後 | BB10: 50年後 | BC10: 51年後 | BD10: 52年後 | BE10: 53年後 | BF10: 54年後 | BG10: 55年後 | BH10: 56年後 | BI10: 57年後 | BJ10: 58年後 | BK10: 59年後 | BL10: 60年後 | BM10: 61年後 | BN10: 62年後 | BO10: 63年後 | BP10: 64年後 | BQ10: 65年後 | BR10: 66年後 | BS10: 67年後 | BT10: 68年後 | BU10: 69年後 | BV10: 70年後 | BW10: 71年後
A11: =パーソナル情報!C3 -> 0 | B11: 本人 | C11: の年齢 | D11: =パーソナル情報!F5 ->  | E11: =+D11+1 ->  | F11: =+E11+1 ->  | Y11: =+X11+1 ->  | Z11: =+Y11+1 ->  | AA11: =+Z11+1 ->  | AB11: =+AA11+1 ->  | AC11: =+AB11+1 ->  | AD11: =+AC11+1 ->  | AE11: =+AD11+1 ->  | AF11: =+AE11+1 ->  | AG11: =+AF11+1 ->  | AH11: =+AG11+1 ->  | AI11: =+AH11+1 ->  | AJ11: =+AI11+1 ->  | AK11: =+AJ11+1 ->  | AL11: =+AK11+1 ->  | AM11: =+AL11+1 ->  | AN11: =+AM11+1 ->  | AO11: =+AN11+1 ->  | AP11: =+AO11+1 ->  | AQ11: =+AP11+1 ->  | AR11: =+AQ11+1 ->  | AS11: =+AR11+1 ->  | AT11: =+AS11+1 ->  | AU11: =+AT11+1 ->  | AV11: =+AU11+1 ->  | AW11: =+AV11+1 ->  | AX11: =+AW11+1 ->  | AY11: =+AX11+1 ->  | AZ11: =+AY11+1 ->  | BA11: =+AZ11+1 ->  | BB11: =+BA11+1 ->  | BC11: =+BB11+1 ->  | BD11: =+BC11+1 ->  | BE11: =+BD11+1 ->  | BF11: =+BE11+1 ->  | BG11: =+BF11+1 ->  | BH11: =+BG11+1 ->  | BI11: =+BH11+1 ->  | BJ11: =+BI11+1 ->  | BK11: =+BJ11+1 ->  | BL11: =+BK11+1 ->  | BM11: =+BL11+1 ->  | BN11: =+BM11+1 ->  | BO11: =+BN11+1 ->  | BP11: =+BO11+1 ->  | BQ11: =+BP11+1 ->  | BR11: =+BQ11+1 ->  | BS11: =+BR11+1 ->  | BT11: =+BS11+1 ->  | BU11: =+BT11+1 ->  | BV11: =+BU11+1 ->  | BW11: =+BV11+1 -> 
A12: =パーソナル情報!C13&"" ->  | B12: =パーソナル情報!E13&"" ->  | C12: の年齢 | D12: =パーソナル情報!H13&"" ->  | E12: =+D12+1 -> 
A13: =パーソナル情報!C14&"" ->  | B13: =パーソナル情報!E14&"" ->  | C13: の年齢 | D13: =パーソナル情報!H14 ->  | E13: =+D13+1 -> 
A14: =パーソナル情報!C15&"" ->  | B14: =パーソナル情報!E15&"" ->  | C14: の年齢 | D14: =パーソナル情報!H15 ->  | E14: =+D14+1 -> 
A15: =パーソナル情報!C16&"" ->  | B15: =パーソナル情報!E16&"" ->  | C15: の年齢 | D15: =パーソナル情報!H16 ->  | E15: =+D15+1 ->  | J15: =+I15+1 -> 
A16: ライフイベント
A17: =パーソナル情報!C3 -> 0 | B17: 本人 | C17: の収入 | D17: =【就労時】年間収入と支出!V13 -> 11 | E17: =D17 -> 11 | F17: =E17 -> 11 | G17: =F17 -> 11 | H17: 11 | I17: 11 | J17: 11 | K17: 11 | L17: 11 | M17: 11 | N17: 11 | O17: =N17 -> 11 | P17: =O17 -> 11 | Q17: =P17 -> 11 | R17: =Q17 -> 11 | S17: =R17 -> 11 | T17: =S17 -> 11 | U17: =T17 -> 11 | V17: =U17 -> 11 | W17: =V17 -> 11 | X17: =W17 -> 11 | Y17: =X17 -> 11 | Z17: =Y17 -> 11 | AA17: =Z17 -> 11 | AB17: =AA17 -> 11 | AC17: =AB17 -> 11 | AD17: =AC17 -> 11 | AE17: =AD17 -> 11 | AF17: =AE17 -> 11 | AG17: =AF17 -> 11 | AH17: =AG17 -> 11 | AI17: =AH17 -> 11 | AJ17: =AI17 -> 11 | AK17: =AJ17 -> 11 | AL17: =AK17 -> 11 | AM17: =AL17 -> 11 | AN17: =AM17 -> 11 | AO17: =AN17 -> 11 | AP17: =AO17 -> 11 | AQ17: =AP17 -> 11 | AR17: =AQ17 -> 11 | AS17: =AR17 -> 11 | AT17: =AS17 -> 11 | AU17: =AT17 -> 11 | AV17: =AU17 -> 11 | AW17: =AV17 -> 11 | AX17: =AW17 -> 11 | AY17: =AX17 -> 11 | AZ17: =AY17 -> 11 | BA17: =AZ17 -> 11 | BB17: =BA17 -> 11 | BC17: =BB17 -> 11 | BD17: =BC17 -> 11 | BE17: =BD17 -> 11 | BF17: =BE17 -> 11 | BG17: =BF17 -> 11 | BH17: =BG17 -> 11 | BI17: =BH17 -> 11 | BJ17: =BI17 -> 11 | BK17: =BJ17 -> 11 | BL17: =BK17 -> 11 | BM17: =BL17 -> 11 | BN17: =BM17 -> 11 | BO17: =BN17 -> 11 | BP17: =BO17 -> 11 | BQ17: =BP17 -> 11 | BR17: =BQ17 -> 11 | BS17: =BR17 -> 11 | BT17: =BS17 -> 11 | BU17: =BT17 -> 11 | BV17: =BU17 -> 11 | BW17: =BV17 -> 11
A18: =パーソナル情報!C13&"" ->  | B18: =パーソナル情報!E13&"" ->  | C18: の収入 | D18: =【就労時】年間収入と支出!V14 -> -1 | E18: =D18 -> -1 | F18: =E18 -> -1 | G18: =F18 -> -1 | H18: -1 | I18: -1 | J18: -1 | K18: -1 | L18: -1 | M18: -1 | N18: -1 | O18: -1 | P18: -1 | Q18: -1 | R18: -1 | S18: -1 | T18: -1 | U18: -1 | V18: -1 | W18: -1 | X18: -1 | Y18: -1 | Z18: -1 | AA18: -1 | AB18: -1 | AC18: -1 | AD18: -1 | AE18: -1 | AF18: -1 | AG18: -1 | AH18: -1 | AI18: -1 | AJ18: -1 | AK18: -1 | AL18: -1 | AM18: -1 | AN18: -1 | AO18: -1 | AP18: -1 | AQ18: -1 | AR18: -1 | AS18: -1 | AT18: -1 | AU18: -1 | AV18: -1 | AW18: -1 | AX18: -1 | AY18: -1 | AZ18: -1 | BA18: -1 | BB18: -1 | BC18: -1 | BD18: -1 | BE18: -1 | BF18: -1 | BG18: -1 | BH18: -1 | BI18: -1 | BJ18: -1 | BK18: -1 | BL18: -1 | BM18: -1 | BN18: -1 | BO18: -1 | BP18: -1 | BQ18: -1 | BR18: -1 | BS18: -1 | BT18: -1 | BU18: -1 | BV18: -1 | BW18: -1
A19: 一時的収入 退職金・個人年金・運用現金化など | D19: =資産!F3+資産!F4 -> 0 | O19: 1500 | R19: 794
A20: 収入合計（Ａ）万円 | D20: =SUM(D17:D19) -> 10 | E20: =SUM(E17:E19) -> 10 | F20: 10 | G20: 10 | H20: 10 | I20: 10 | J20: 10 | K20: 10 | L20: 10 | M20: 10 | N20: 10 | O20: 1510 | P20: 10 | Q20: 10 | R20: 804 | S20: 10 | T20: 10 | U20: 10 | V20: 10 | W20: 10 | X20: 10 | Y20: =SUM(Y17:Y19) -> 10 | Z20: 10 | AA20: 10 | AB20: 10 | AC20: 10 | AD20: 10 | AE20: 10 | AF20: 10 | AG20: 10 | AH20: 10 | AI20: 10 | AJ20: =SUM(AJ17:AJ19) -> 10 | AK20: 10 | AL20: 10 | AM20: 10 | AN20: 10 | AO20: 10 | AP20: 10 | AQ20: 10 | AR20: 10 | AS20: 10 | AT20: 10 | AU20: 10 | AV20: 10 | AW20: 10 | AX20: 10 | AY20: 10 | AZ20: 10 | BA20: 10 | BB20: 10 | BC20: 10 | BD20: 10 | BE20: 10 | BF20: 10 | BG20: 10 | BH20: 10 | BI20: 10 | BJ20: 10 | BK20: 10 | BL20: 10 | BM20: 10 | BN20: 10 | BO20: 10 | BP20: 10 | BQ20: 10 | BR20: 10 | BS20: 10 | BT20: 10 | BU20: 10 | BV20: 10 | BW20: 10
A21: 基本生活費 | D21: =【就労時】年間収入と支出!U32 -> 0 | E21: =D21 -> 0 | F21: =E21 -> 0 | G21: 0 | H21: 0 | I21: 0 | J21: 0 | K21: 0 | L21: 0 | M21: 0 | N21: 0 | O21: =N21 -> 0 | P21: =O21 -> 0 | Q21: =P21 -> 0 | R21: =Q21 -> 0 | S21: =R21 -> 0 | T21: =S21 -> 0 | U21: =T21 -> 0 | V21: =U21 -> 0 | W21: =V21 -> 0 | X21: =W21 -> 0 | Y21: =X21 -> 0 | Z21: =Y21 -> 0 | AA21: =Z21 -> 0 | AB21: =AA21 -> 0 | AC21: =AB21 -> 0 | AD21: =AC21 -> 0 | AE21: =AD21 -> 0 | AF21: =AE21 -> 0 | AG21: =AF21 -> 0 | AH21: =AG21 -> 0 | AI21: =AH21 -> 0 | AJ21: =AI21 -> 0 | AK21: =AJ21 -> 0 | AL21: =AK21 -> 0 | AM21: =AL21 -> 0 | AN21: =AM21 -> 0 | AO21: =AN21 -> 0 | AP21: =AO21 -> 0 | AQ21: =AP21 -> 0 | AR21: =AQ21 -> 0 | AS21: =AR21 -> 0 | AT21: =AS21 -> 0 | AU21: =AT21 -> 0 | AV21: =AU21 -> 0 | AW21: =AV21 -> 0 | AX21: =AW21 -> 0 | AY21: =AX21 -> 0 | AZ21: =AY21 -> 0 | BA21: =AZ21 -> 0 | BB21: =BA21 -> 0 | BC21: =BB21 -> 0 | BD21: =BC21 -> 0 | BE21: =BD21 -> 0 | BF21: =BE21 -> 0 | BG21: =BF21 -> 0 | BH21: =BG21 -> 0 | BI21: =BH21 -> 0 | BJ21: =BI21 -> 0 | BK21: =BJ21 -> 0 | BL21: =BK21 -> 0 | BM21: =BL21 -> 0 | BN21: =BM21 -> 0 | BO21: =BN21 -> 0 | BP21: =BO21 -> 0 | BQ21: =BP21 -> 0 | BR21: =BQ21 -> 0 | BS21: =BR21 -> 0 | BT21: =BS21 -> 0 | BU21: =BT21 -> 0 | BV21: =BU21 -> 0 | BW21: =BV21 -> 0
A22: 住居関連費 | D22: =【就労時】年間収入と支出!U33 -> 0 | E22: =D22 -> 0 | F22: =E22 -> 0 | G22: 0 | H22: 0 | I22: 0 | J22: 0 | K22: 0 | L22: 0 | M22: 0 | N22: 0 | O22: 0 | P22: 0 | Q22: 0 | R22: 0 | S22: 0 | T22: 0 | U22: 0 | V22: 0 | W22: 0 | X22: 0 | Y22: 0 | Z22: 0 | AA22: 0 | AB22: 0 | AC22: 0 | AD22: 0 | AE22: 0 | AF22: 0 | AG22: 0 | AH22: 0 | AI22: 0 | AJ22: 0 | AK22: 0 | AL22: 0 | AM22: 0 | AN22: 0 | AO22: 0 | AP22: 0 | AQ22: 0 | AR22: 0 | AS22: 0 | AT22: 0 | AU22: 0 | AV22: 0 | AW22: 0 | AX22: 0 | AY22: 0 | AZ22: 0 | BA22: 0 | BB22: 0 | BC22: 0 | BD22: 0 | BE22: 0 | BF22: 0 | BG22: 0 | BH22: 0 | BI22: 0 | BJ22: 0 | BK22: 0 | BL22: 0 | BM22: 0 | BN22: 0 | BO22: 0 | BP22: 0 | BQ22: 0 | BR22: 0 | BS22: 0 | BT22: 0 | BU22: 0 | BV22: 0 | BW22: 0
A23: 車両費 | D23: =【就労時】年間収入と支出!U34 -> 0 | E23: =D23 -> 0 | F23: 0 | G23: 0 | H23: 0 | I23: 0 | J23: 0 | K23: 0 | L23: 0 | M23: 0 | N23: 0 | O23: 0 | P23: 0 | Q23: 0 | R23: 0 | S23: 0 | T23: 0 | U23: 0 | V23: 0 | W23: 0 | X23: 0 | Y23: 0 | Z23: 0 | AA23: 0 | AB23: 0 | AC23: 0 | AD23: 0 | AE23: 0 | AF23: 0 | AG23: 0 | AH23: 0 | AI23: 0 | AJ23: 0 | AK23: 0 | AL23: 0 | AM23: 0 | AN23: 0 | AO23: 0 | AP23: 0 | AQ23: 0 | AR23: 0 | AS23: 0 | AT23: 0 | AU23: 0 | AV23: 0 | AW23: 0 | AX23: 0 | AY23: 0 | AZ23: 0 | BA23: 0 | BB23: 0 | BC23: 0 | BD23: 0 | BE23: 0 | BF23: 0 | BG23: 0 | BH23: 0 | BI23: 0 | BJ23: 0 | BK23: 0 | BL23: 0 | BM23: 0 | BN23: 0 | BO23: 0 | BP23: 0 | BQ23: 0 | BR23: 0 | BS23: 0 | BT23: 0 | BU23: 0 | BV23: 0 | BW23: 0
A24: 教育・医療費 | D24: =【就労時】年間収入と支出!U35 -> 0 | E24: 0 | F24: =E24 -> 0 | G24: 0 | H24: 0 | I24: 0 | J24: 0 | K24: 0 | L24: 0 | M24: 0 | N24: 0 | O24: 0 | P24: 0 | Q24: 0 | R24: 0 | S24: 0 | T24: 0 | U24: 0 | V24: 0 | W24: 0 | X24: 0 | Y24: 0 | Z24: 0 | AA24: 0 | AB24: 0 | AC24: 0 | AD24: 0 | AE24: 0 | AF24: 0 | AG24: 0 | AH24: 0 | AI24: 0 | AJ24: 0 | AK24: 0 | AL24: 0 | AM24: 0 | AN24: 0 | AO24: 0 | AP24: 0 | AQ24: 0 | AR24: 0 | AS24: 0 | AT24: 0 | AU24: 0 | AV24: 0 | AW24: 0 | AX24: 0 | AY24: 0 | AZ24: 0 | BA24: 0 | BB24: 0 | BC24: 0 | BD24: 0 | BE24: 0 | BF24: 0 | BG24: 0 | BH24: 0 | BI24: 0 | BJ24: 0 | BK24: 0 | BL24: 0 | BM24: 0 | BN24: 0 | BO24: 0 | BP24: 0 | BQ24: 0 | BR24: 0 | BS24: 0 | BT24: 0 | BU24: 0 | BV24: 0 | BW24: 0
A25: 保険料 | D25: =【就労時】年間収入と支出!U36 -> 0 | E25: 0 | F25: 0 | G25: 0 | H25: 0 | I25: 0 | J25: 0 | K25: 0 | L25: 0 | M25: 0 | N25: 0 | O25: 0 | P25: 0 | Q25: 0 | R25: 0 | S25: 0 | T25: 0 | U25: 0 | V25: 0 | W25: 0 | X25: 0 | Y25: 0 | Z25: 0 | AA25: 0 | AB25: 0 | AC25: 0 | AD25: 0 | AE25: 0 | AF25: 0 | AG25: 0 | AH25: 0 | AI25: 0 | AJ25: 0 | AK25: 0 | AL25: 0 | AM25: 0 | AN25: 0 | AO25: 0 | AP25: 0 | AQ25: 0 | AR25: 0 | AS25: 0 | AT25: 0 | AU25: 0 | AV25: 0 | AW25: 0 | AX25: 0 | AY25: 0 | AZ25: 0 | BA25: 0 | BB25: 0 | BC25: 0 | BD25: 0 | BE25: 0 | BF25: 0 | BG25: 0 | BH25: 0 | BI25: 0 | BJ25: 0 | BK25: 0 | BL25: 0 | BM25: 0 | BN25: 0 | BO25: 0 | BP25: 0 | BQ25: 0 | BR25: 0 | BS25: 0 | BT25: 0 | BU25: 0 | BV25: 0 | BW25: 0
A26: 運用資金 | D26: =【就労時】年間収入と支出!U37 -> 0 | E26: =D26 -> 0 | F26: =E26 -> 0 | G26: =F26 -> 0 | H26: =G26 -> 0 | I26: =H26 -> 0 | J26: =I26 -> 0 | K26: =J26 -> 0 | L26: =K26 -> 0 | M26: =L26 -> 0 | N26: =M26 -> 0 | O26: 0 | P26: 0 | Q26: 0 | R26: 0 | S26: 0 | T26: 0 | U26: 0 | V26: 0 | W26: 0 | X26: 0 | Y26: 0 | Z26: 0 | AA26: 0 | AB26: 0 | AC26: 0 | AD26: 0 | AE26: 0 | AF26: 0 | AG26: 0 | AH26: 0 | AI26: 0 | AJ26: 0 | AK26: 0 | AL26: 0 | AM26: 0 | AN26: 0 | AO26: 0 | AP26: 0 | AQ26: 0 | AR26: 0 | AS26: 0 | AT26: 0 | AU26: 0 | AV26: 0 | AW26: 0 | AX26: 0 | AY26: 0 | AZ26: 0 | BA26: 0 | BB26: 0 | BC26: 0 | BD26: 0 | BE26: 0 | BF26: 0 | BG26: 0 | BH26: 0 | BI26: 0 | BJ26: 0 | BK26: 0 | BL26: 0 | BM26: 0 | BN26: 0 | BO26: 0 | BP26: 0 | BQ26: 0 | BR26: 0 | BS26: 0 | BT26: 0 | BU26: 0 | BV26: 0 | BW26: 0
A27: その他の支出 | D27: =【就労時】年間収入と支出!U38 -> 0 | E27: 0 | F27: 0 | G27: 0 | H27: 0 | I27: 0 | J27: 0 | K27: 0 | L27: 0 | M27: 0 | N27: 0 | O27: 0 | P27: 0 | Q27: 0 | R27: 0 | S27: 0 | T27: 0 | U27: 0 | V27: 0 | W27: 0 | X27: 0 | Y27: 0 | Z27: 0 | AA27: 0 | AB27: 0 | AC27: 0 | AD27: 0 | AE27: 0 | AF27: 0 | AG27: 0 | AH27: 0 | AI27: 0 | AJ27: 0 | AK27: 0 | AL27: 0 | AM27: 0 | AN27: 0 | AO27: 0 | AP27: 0 | AQ27: 0 | AR27: 0 | AS27: 0 | AT27: 0 | AU27: 0 | AV27: 0 | AW27: 0 | AX27: 0 | AY27: 0 | AZ27: 0 | BA27: 0 | BB27: 0 | BC27: 0 | BD27: 0 | BE27: 0 | BF27: 0 | BG27: 0 | BH27: 0 | BI27: 0 | BJ27: 0 | BK27: 0 | BL27: 0 | BM27: 0 | BN27: 0 | BO27: 0 | BP27: 0 | BQ27: 0 | BR27: 0 | BS27: 0 | BT27: 0 | BU27: 0 | BV27: 0 | BW27: 0
A28: 一時的支出 自動車購入・ローン一括返済など
A29: 支出合計（Ｂ）万円 | D29: =SUM(D21:D28) -> 0 | E29: =SUM(E21:E28) -> 0 | F29: 0 | G29: 0 | H29: 0 | I29: 0 | J29: 0 | K29: 0 | L29: 0 | M29: 0 | N29: 0 | O29: 0 | P29: 0 | Q29: 0 | R29: 0 | S29: 0 | T29: 0 | U29: 0 | V29: 0 | W29: 0 | X29: 0 | Y29: =SUM(Y21:Y28) -> 0 | Z29: 0 | AA29: 0 | AB29: 0 | AC29: 0 | AD29: 0 | AE29: 0 | AF29: 0 | AG29: 0 | AH29: 0 | AI29: 0 | AJ29: =SUM(AJ21:AJ28) -> 0 | AK29: 0 | AL29: 0 | AM29: 0 | AN29: 0 | AO29: 0 | AP29: 0 | AQ29: 0 | AR29: 0 | AS29: 0 | AT29: 0 | AU29: 0 | AV29: 0 | AW29: 0 | AX29: 0 | AY29: 0 | AZ29: 0 | BA29: 0 | BB29: 0 | BC29: 0 | BD29: 0 | BE29: 0 | BF29: 0 | BG29: 0 | BH29: 0 | BI29: 0 | BJ29: 0 | BK29: 0 | BL29: 0 | BM29: 0 | BN29: 0 | BO29: 0 | BP29: 0 | BQ29: 0 | BR29: 0 | BS29: 0 | BT29: 0 | BU29: 0 | BV29: 0 | BW29: 0
A30: 年間収支（Ａ-Ｂ）万円 | D30: =+D20-D29 -> 10 | E30: =+E20-E29 -> 10 | F30: 10 | G30: 10 | H30: 10 | I30: 10 | J30: 10 | K30: 10 | L30: 10 | M30: 10 | N30: 10 | O30: 1510 | P30: 10 | Q30: 10 | R30: 804 | S30: 10 | T30: 10 | U30: 10 | V30: 10 | W30: 10 | X30: 10 | Y30: =+Y20-Y29 -> 10 | Z30: 10 | AA30: 10 | AB30: 10 | AC30: 10 | AD30: 10 | AE30: 10 | AF30: 10 | AG30: 10 | AH30: 10 | AI30: 10 | AJ30: =+AJ20-AJ29 -> 10 | AK30: 10 | AL30: 10 | AM30: 10 | AN30: 10 | AO30: 10 | AP30: 10 | AQ30: 10 | AR30: 10 | AS30: 10 | AT30: 10 | AU30: 10 | AV30: 10 | AW30: 10 | AX30: 10 | AY30: 10 | AZ30: 10 | BA30: 10 | BB30: 10 | BC30: 10 | BD30: 10 | BE30: 10 | BF30: 10 | BG30: 10 | BH30: 10 | BI30: 10 | BJ30: 10 | BK30: 10 | BL30: 10 | BM30: 10 | BN30: 10 | BO30: 10 | BP30: 10 | BQ30: 10 | BR30: 10 | BS30: 10 | BT30: 10 | BU30: 10 | BV30: 10 | BW30: 10
A31: 貯蓄残高 万円 | D31: 0 | E31: =+D31+E30 -> 10 | F31: =+E31+F30 -> 20 | G31: 30 | H31: 40 | I31: 50 | J31: 60 | K31: 70 | L31: 80 | M31: 90 | N31: 100 | O31: 1610 | P31: 1620 | Q31: 1630 | R31: 2434 | S31: 2444 | T31: 2454 | U31: 2464 | V31: 2474 | W31: 2484 | X31: 2494 | Y31: =+X31+Y30 -> 2504 | Z31: =+Y31+Z30 -> 2514 | AA31: =+Z31+AA30 -> 2524 | AB31: =+AA31+AB30 -> 2534 | AC31: =+AB31+AC30 -> 2544 | AD31: =+AC31+AD30 -> 2554 | AE31: =+AD31+AE30 -> 2564 | AF31: =+AE31+AF30 -> 2574 | AG31: =+AF31+AG30 -> 2584 | AH31: =+AG31+AH30 -> 2594 | AI31: =+AH31+AI30 -> 2604 | AJ31: =+AI31+AJ30 -> 2614 | AK31: =+AJ31+AK30 -> 2624 | AL31: =+AK31+AL30 -> 2634 | AM31: =+AL31+AM30 -> 2644 | AN31: =+AM31+AN30 -> 2654 | AO31: =+AN31+AO30 -> 2664 | AP31: =+AO31+AP30 -> 2674 | AQ31: =+AP31+AQ30 -> 2684 | AR31: =+AQ31+AR30 -> 2694 | AS31: =+AR31+AS30 -> 2704 | AT31: =+AS31+AT30 -> 2714 | AU31: =+AT31+AU30 -> 2724 | AV31: =+AU31+AV30 -> 2734 | AW31: =+AV31+AW30 -> 2744 | AX31: =+AW31+AX30 -> 2754 | AY31: =+AX31+AY30 -> 2764 | AZ31: =+AY31+AZ30 -> 2774 | BA31: =+AZ31+BA30 -> 2784 | BB31: =+BA31+BB30 -> 2794 | BC31: =+BB31+BC30 -> 2804 | BD31: =+BC31+BD30 -> 2814 | BE31: =+BD31+BE30 -> 2824 | BF31: =+BE31+BF30 -> 2834 | BG31: =+BF31+BG30 -> 2844 | BH31: =+BG31+BH30 -> 2854 | BI31: =+BH31+BI30 -> 2864 | BJ31: =+BI31+BJ30 -> 2874 | BK31: =+BJ31+BK30 -> 2884 | BL31: =+BK31+BL30 -> 2894 | BM31: =+BL31+BM30 -> 2904 | BN31: =+BM31+BN30 -> 2914 | BO31: =+BN31+BO30 -> 2924 | BP31: =+BO31+BP30 -> 2934 | BQ31: =+BP31+BQ30 -> 2944 | BR31: =+BQ31+BR30 -> 2954 | BS31: =+BR31+BS30 -> 2964 | BT31: =+BS31+BT30 -> 2974 | BU31: =+BT31+BU30 -> 2984 | BV31: =+BU31+BV30 -> 2994 | BW31: =+BV31+BW30 -> 3004
C33: ※本来、キャッシュフロー表を作成するときは物価上昇や運用利回りを考慮した金額を記入しますが、ここでは記入しやすいように変動率をゼロとしています。

Sheet 医療・介護
A1: 住まいの終活『すましゅう』
B2: かかりつけ医療・介護情報 | E2: 1 | G2: 2 | I2: 3
C3: 医院・サービス名
C4: 連絡先
C5: 医師・担当者
C6: 治療内容
E7: 4 | G7: 5 | I7: 6
C8: 医院・サービス名
C9: 連絡先
C10: 医師・担当者
C11: 治療内容
B13: 介護が必要になったとき
E15: 条件
E16: 名前
B18: 注意事項
B24: 重篤な病気になったとき
C25: 病名の告知
F28: 名前
C30: 延命治療
F32: 条件
F33: 名前
C35: 手術
F37: 条件
F38: 名前

Sheet 遺言書
A1: 住まいの終活『すましゅう』
B2: 遺言書の有無
E3: 遺言書の種類
E4: 保管場所
E5: 管理者連絡先
E6: 遺言書日付

Sheet お葬式・お墓
A1: 住まいの終活『すましゅう』
B2: 希望する葬儀の形
E6: 名前
B9: 葬儀の場所は用意しているか
E14: 名前
B17: 希望する葬儀の場所
C18: 名称
C19: 宗教・宗派
C20: 住所
C21: 連絡先
C22: 費用 | G22: 万円
C23: 喪主を頼みたい人
C24: 弔辞を頼みたい人
C25: 連絡先
B27: お墓に関する希望
D29: 名称
D30: 住所
D31: 電話
D32: 刻んで欲しい言葉
E33: 費用 | H33: 万円
E34: 希望場所
B40: 死後事務処理・遺品整理は用意しているか
E41: 1
D42: 生前契約しているサービス
D43: 名称
D44: 住所
D45: 電話
D46: 契約書の保管場所
E48: 2
D49: 生前契約しているサービス
D50: 名称
D51: 住所
D52: 電話
D53: 契約書の保管場所
E55: 3
D56: 生前契約しているサービス
D57: 名称
D58: 住所
D59: 電話
D60: 契約書の保管場所
E62: 4
D63: 生前契約しているサービス
D64: 名称
D65: 住所
D66: 電話
D67: 契約書の保管場所
E69: 5
D70: 生前契約しているサービス
D71: 名称
D72: 住所
D73: 電話
D74: 契約書の保管場所

Sheet 公的書類
A1: 住まいの終活『すましゅう』
B2: 公的書類の保管場所
E4: 番号 | H4: 保管場所
B5: 健康保険被保険者証
B6: 介護保険被保険者証
B7: 後期高齢者医療被保険者証
B8: 運転免許証
B9: マイナンバーカード
B10: パスポート
B11: 印鑑登録証
B12: 年金手帳 | E12: =年金!F6 -> 0 | H12: =年金!F7 -> 0
B13: その他
B14: その他
B15: その他
B16: その他

Sheet デジタル遺品
A1: 住まいの終活『すましゅう』
B2: スマホ・パソコン
E3: 1 | H3: 2
C4: 種類
C5: 電話番号
C6: 契約会社
C7: ID
C8: パスワード
B10: インターネット・SNS・動画配信サービスなど
B11: 例：ネットバンキング・ショッピング・サブスクリプション契約・電子メールアカウント
E12: 1 | H12: 2
C13: サービス名
C14: 登録メールアドレス
C15: ID
C16: パスワード
E17: 3 | H17: 4
C18: サービス名
C19: 登録メールアドレス
C20: ID
C21: パスワード
E22: 5 | H22: 6
C23: サービス名
C24: 登録メールアドレス
C25: ID
C26: パスワード
E27: 7 | H27: 8
C28: サービス名
C29: 登録メールアドレス
C30: ID
C31: パスワード
E32: 9 | H32: 10
C33: サービス名
C34: 登録メールアドレス
C35: ID
C36: パスワード

Sheet ペット
A1: 住まいの終活『すましゅう』
B2: ペット
E3: 1
C4: 種類
C5: 名前
C6: 譲りたい相手
C7: 連絡先
C8: 食事の好み
C9: 日課
C10: 病気・アレルギー
E14: 2
C15: 種類
C16: 名前
C17: 譲りたい相手
C18: 連絡先
C19: 食事の好み
C20: 日課
C21: 病気・アレルギー
E25: 3
C26: 種類
C27: 名前
C28: 譲りたい相手
C29: 連絡先
C30: 食事の好み
C31: 日課
C32: 病気・アレルギー
